Workbook

Sheet 4 variables
A1: 0.20 | B1: 0.15 | C1: 0.60 | D1: 0.25 | E1: Abs correl | F1: lag 1 | G1: r | H1: exp(-a r) | I1: new correl | J1: 4.00 | K1: Abs correl | L1: correl | M1: exp( - a r) | N1: frequency | S1: lag_1 means correl of lag 1
A2: =RAND() -> 0.59 | B2: =RAND() -> 0.71 | C2: 0.34 | D2: 0.82 | E2: =ABS(CORREL(A2:D2,A$1:D$1)) -> 0.83 | F2: =ABS(CORREL(A2:C2,B2:D2)) -> 0.87 | G2: =ABS(LN(F2/$J$2)) -> 0.78 | H2: =EXP(-$J$1*G2) -> 0.04 | I2: =MIN(E2,H2) -> 0.04 | J2: =ABS(CORREL(A1:C1,B1:D1)) -> 0.40 | K2: 0.00 | L2: =COUNTIF(E:E,">"&K2)/100000 -> 100.0% | M2: =COUNTIF(H:H,">"&K2)/100000 -> 100.0% | N2: =COUNTIF(I:I,">"&K2)/100000 -> 100.0%
A3: =RAND() -> 0.64 | B3: 0.41 | C3: 0.97 | D3: 0.79 | E3: =ABS(CORREL(A3:D3,A$1:D$1)) -> 0.87 | F3: =ABS(CORREL(A3:C3,B3:D3)) -> 0.20 | G3: =ABS(LN(F3/$J$2)) -> 0.68 | H3: =EXP(-$J$1*G3) -> 0.07 | I3: =MIN(E3,H3) -> 0.07 | K3: 0.01 | L3: =COUNTIF(E:E,">"&K3)/100000 -> 99.1% | M3: =COUNTIF(H:H,">"&K3)/100000 -> 92.3% | N3: =COUNTIF(I:I,">"&K3)/100000 -> 91.5%
A4: 0.67 | B4: 0.88 | C4: 0.06 | D4: 0.68 | E4: 0.99 | F4: 0.51 | G4: 0.24 | H4: 0.38 | I4: 0.38 | K4: 0.02 | L4: 98.2% | M4: 90.8% | N4: 89.2%
A5: 0.77 | B5: 0.91 | C5: 0.95 | D5: 0.76 | E5: 0.55 | F5: 0.51 | G5: 0.24 | H5: 0.38 | I5: 0.38 | K5: 0.03 | L5: 97.3% | M5: 77.9% | N5: 75.9% | P5: above 0.5 | Q5: above 0.5 | S5: new correl high if strong relationship
A6: 0.64 | B6: 0.98 | C6: 0.58 | D6: 0.56 | E6: 0.55 | F6: 0.32 | G6: 0.22 | H6: 0.42 | I6: 0.42 | K6: 0.04 | L6: 96.4% | M6: 69.0% | N6: 66.5% | S6: correl high if weak relationship
A7: 0.18 | B7: 0.90 | C7: 0.25 | D7: 0.05 | E7: 0.35 | F7: 0.38 | G7: 0.06 | H7: 0.78 | I7: 0.35 | K7: 0.05 | L7: 95.6% | M7: 63.6% | N7: 60.8%
A8: 0.72 | B8: 0.27 | C8: 0.88 | D8: 0.15 | E8: 0.66 | F8: 1.00 | G8: 0.91 | H8: 0.03 | I8: 0.03 | K8: 0.06 | L8: 94.7% | M8: 59.7% | N8: 56.6% | P8: scattergram(E, F)
A9: 0.88 | B9: 0.25 | C9: 0.09 | D9: 0.17 | E9: 0.48 | F9: 0.75 | G9: 0.63 | H9: 0.08 | I9: 0.08 | K9: 0.07 | L9: 93.8% | M9: 56.6% | N9: 53.2%
A10: 0.20 | B10: 0.00 | C10: 0.96 | D10: 0.68 | E10: 0.87 | F10: 0.03 | G10: 2.48 | H10: 0.00 | I10: 0.00 | K10: 0.08 | L10: 93.0% | M10: 54.0% | N10: 50.2%
A11: 0.79 | B11: 0.11 | C11: 0.72 | D11: 0.91 | E11: 0.34 | F11: 0.37 | G11: 0.08 | H11: 0.72 | I11: 0.34 | K11: 0.09 | L11: 92.0% | M11: 51.6% | N11: 47.6%
A12: 0.17 | B12: 0.82 | C12: 0.68 | D12: 0.82 | E12: 0.13 | F12: 0.65 | G12: 0.49 | H12: 0.14 | I12: 0.13 | K12: 0.10 | L12: 91.2% | M12: 49.6% | N12: 45.4%
A13: 0.95 | B13: 0.84 | C13: 0.54 | D13: 0.61 | E13: 0.76 | F13: 0.53 | G13: 0.27 | H13: 0.33 | I13: 0.33 | K13: 0.11 | L13: 90.2% | M13: 47.8% | N13: 43.3%
A14: 0.03 | B14: 0.34 | C14: 0.29 | D14: 0.98 | E14: 0.06 | F14: 0.33 | G14: 0.21 | H14: 0.43 | I14: 0.06 | K14: 0.12 | L14: 89.3% | M14: 46.2% | N14: 41.4%
A15: 0.92 | B15: 0.83 | C15: 0.36 | D15: 0.58 | E15: 0.89 | F15: 0.18 | G15: 0.81 | H15: 0.04 | I15: 0.04 | K15: 0.13 | L15: 88.4% | M15: 44.7% | N15: 39.7%
A16: 0.18 | B16: 0.97 | C16: 0.77 | D16: 0.74 | E16: 0.15 | F16: 0.93 | G16: 0.85 | H16: 0.03 | I16: 0.03 | K16: 0.14 | L16: 87.5% | M16: 43.3% | N16: 38.0%
A17: 0.22 | B17: 0.68 | C17: 0.84 | D17: 0.97 | E17: 0.40 | F17: 0.98 | G17: 0.90 | H17: 0.03 | I17: 0.03 | K17: 0.15 | L17: 86.6% | M17: 42.0% | N17: 36.5%
A18: 0.75 | B18: 0.44 | C18: 0.30 | D18: 0.91 | E18: 0.57 | F18: 0.57 | G18: 0.36 | H18: 0.24 | I18: 0.24 | K18: 0.16 | L18: 85.7% | M18: 40.7% | N18: 35.1%
A19: 0.82 | B19: 0.89 | C19: 0.35 | D19: 0.30 | E19: 0.67 | F19: 0.47 | G19: 0.15 | H19: 0.54 | I19: 0.54 | K19: 0.17 | L19: 84.7% | M19: 39.4% | N19: 33.7%
A20: 0.99 | B20: 0.43 | C20: 0.81 | D20: 0.88 | E20: 0.24 | F20: 0.64 | G20: 0.47 | H20: 0.15 | I20: 0.15 | K20: 0.18 | L20: 83.8% | M20: 38.3% | N20: 32.4%
A21: 0.81 | B21: 0.21 | C21: 0.86 | D21: 0.49 | E21: 0.65 | F21: 0.87 | G21: 0.77 | H21: 0.05 | I21: 0.05 | K21: 0.19 | L21: 82.9% | M21: 37.2% | N21: 31.2%
A22: 0.33 | B22: 0.31 | C22: 0.66 | D22: 0.86 | E22: 0.46 | F22: 0.74 | G22: 0.61 | H22: 0.09 | I22: 0.09 | K22: 0.20 | L22: 81.9% | M22: 36.3% | N22: 30.0%
A23: 0.34 | B23: 0.19 | C23: 0.05 | D23: 0.44 | E23: 0.66 | F23: 0.62 | G23: 0.44 | H23: 0.17 | I23: 0.17 | K23: 0.21 | L23: 81.0% | M23: 35.3% | N23: 28.8%
A24: 0.24 | B24: 0.52 | C24: 0.33 | D24: 0.19 | E24: 0.15 | F24: 0.41 | G24: 0.03 | H24: 0.88 | I24: 0.15 | K24: 0.22 | L24: 80.0% | M24: 34.4% | N24: 27.6%
A25: 0.99 | B25: 0.92 | C25: 0.29 | D25: 0.74 | E25: 0.97 | F25: 0.14 | G25: 1.04 | H25: 0.02 | I25: 0.02 | K25: 0.23 | L25: 79.1% | M25: 33.4% | N25: 26.5%
A26: 0.34 | B26: 0.21 | C26: 0.49 | D26: 0.70 | E26: 0.36 | F26: 0.48 | G26: 0.17 | H26: 0.50 | I26: 0.36 | K26: 0.24 | L26: 78.1% | M26: 32.6% | N26: 25.5%
A27: 0.57 | B27: 0.38 | C27: 0.72 | D27: 0.81 | E27: 0.54 | F27: 0.13 | G27: 1.11 | H27: 0.01 | I27: 0.01 | K27: 0.25 | L27: 77.2% | M27: 31.7% | N27: 24.5%
A28: 0.09 | B28: 0.00 | C28: 0.20 | D28: 0.98 | E28: 0.01 | F28: 0.79 | G28: 0.68 | H28: 0.07 | I28: 0.01 | K28: 0.26 | L28: 76.2% | M28: 30.9% | N28: 23.5%
A29: 0.26 | B29: 0.65 | C29: 0.32 | D29: 0.74 | E29: 0.43 | F29: 0.93 | G29: 0.84 | H29: 0.03 | I29: 0.03 | K29: 0.27 | L29: 75.2% | M29: 30.1% | N29: 22.5%
A30: 0.09 | B30: 0.95 | C30: 0.40 | D30: 0.22 | E30: 0.18 | F30: 0.61 | G30: 0.42 | H30: 0.19 | I30: 0.18 | K30: 0.28 | L30: 74.2% | M30: 29.3% | N30: 21.6%
A31: 0.42 | B31: 0.54 | C31: 0.98 | D31: 0.98 | E31: 0.69 | F31: 0.65 | G31: 0.49 | H31: 0.14 | I31: 0.14 | K31: 0.29 | L31: 73.3% | M31: 28.5% | N31: 20.8%
A32: 0.94 | B32: 0.09 | C32: 0.83 | D32: 0.44 | E32: 0.50 | F32: 0.93 | G32: 0.84 | H32: 0.03 | I32: 0.03 | K32: 0.30 | L32: 72.2% | M32: 27.8% | N32: 20.0%
A33: 0.73 | B33: 0.38 | C33: 0.06 | D33: 0.28 | E33: 0.73 | F33: 0.34 | G33: 0.15 | H33: 0.55 | I33: 0.55 | K33: 0.31 | L33: 71.2% | M33: 27.1% | N33: 19.2%
A34: 0.87 | B34: 0.76 | C34: 0.52 | D34: 0.22 | E34: 0.31 | F34: 0.99 | G34: 0.90 | H34: 0.03 | I34: 0.03 | K34: 0.32 | L34: 70.3% | M34: 26.3% | N34: 18.5%
A35: 0.15 | B35: 0.94 | C35: 0.01 | D35: 0.53 | E35: 0.70 | F35: 0.83 | G35: 0.73 | H35: 0.05 | I35: 0.05 | K35: 0.33 | L35: 69.2% | M35: 25.6% | N35: 17.7%
A36: 0.06 | B36: 0.34 | C36: 0.14 | D36: 0.92 | E36: 0.25 | F36: 0.46 | G36: 0.13 | H36: 0.59 | I36: 0.25 | K36: 0.34 | L36: 68.2% | M36: 24.9% | N36: 17.0%
A37: 0.74 | B37: 0.09 | C37: 0.69 | D37: 0.06 | E37: 0.51 | F37: 0.99 | G37: 0.91 | H37: 0.03 | I37: 0.03 | K37: 0.35 | L37: 67.1% | M37: 24.1% | N37: 16.2%
A38: 0.77 | B38: 0.65 | C38: 0.81 | D38: 0.92 | E38: 0.36 | F38: 0.15 | G38: 0.99 | H38: 0.02 | I38: 0.02 | K38: 0.36 | L38: 66.1% | M38: 23.4% | N38: 15.5%
A39: 0.02 | B39: 0.50 | C39: 0.96 | D39: 0.11 | E39: 0.78 | F39: 0.45 | G39: 0.11 | H39: 0.63 | I39: 0.63 | K39: 0.37 | L39: 65.0% | M39: 22.7% | N39: 14.8%
A40: 0.61 | B40: 0.03 | C40: 0.85 | D40: 0.08 | E40: 0.75 | F40: 0.94 | G40: 0.85 | H40: 0.03 | I40: 0.03 | K40: 0.38 | L40: 63.9% | M40: 22.0% | N40: 14.1%
A41: 0.17 | B41: 0.44 | C41: 0.30 | D41: 0.91 | E41: 0.20 | F41: 0.27 | G41: 0.41 | H41: 0.19 | I41: 0.19 | K41: 0.39 | L41: 62.9% | M41: 21.1% | N41: 13.4%
A42: 0.56 | B42: 0.61 | C42: 0.83 | D42: 0.46 | E42: 0.82 | F42: 0.70 | G42: 0.56 | H42: 0.11 | I42: 0.11 | K42: 0.40 | L42: 61.8% | M42: 20.3% | N42: 12.6%
A43: 0.08 | B43: 0.35 | C43: 0.29 | D43: 0.15 | E43: 0.24 | F43: 0.58 | G43: 0.36 | H43: 0.24 | I43: 0.24 | K43: 0.41 | L43: 60.7% | M43: 19.3% | N43: 11.9%
A44: 0.32 | B44: 0.87 | C44: 0.54 | D44: 0.66 | E44: 0.24 | F44: 0.97 | G44: 0.88 | H44: 0.03 | I44: 0.03 | K44: 0.42 | L44: 59.5% | M44: 18.3% | N44: 11.1%
A45: 0.31 | B45: 0.38 | C45: 0.45 | D45: 0.92 | E45: 0.01 | F45: 0.92 | G45: 0.83 | H45: 0.04 | I45: 0.01 | K45: 0.43 | L45: 58.4% | M45: 17.5% | N45: 10.6%
A46: 0.98 | B46: 0.86 | C46: 0.40 | D46: 0.75 | E46: 0.95 | F46: 0.10 | G46: 1.38 | H46: 0.00 | I46: 0.00 | K46: 0.44 | L46: 57.3% | M46: 16.8% | N46: 10.1%
A47: 0.63 | B47: 0.18 | C47: 0.93 | D47: 0.89 | E47: 0.68 | F47: 0.16 | G47: 0.91 | H47: 0.03 | I47: 0.03 | K47: 0.45 | L47: 56.1% | M47: 16.2% | N47: 9.6%
A48: 0.40 | B48: 0.94 | C48: 0.79 | D48: 0.05 | E48: 0.22 | F48: 0.40 | G48: 0.00 | H48: 0.99 | I48: 0.22 | K48: 0.46 | L48: 55.0% | M48: 15.6% | N48: 9.1%
A49: 0.65 | B49: 0.18 | C49: 0.32 | D49: 0.62 | E49: 0.19 | F49: 0.52 | G49: 0.26 | H49: 0.35 | I49: 0.19 | K49: 0.47 | L49: 53.9% | M49: 15.1% | N49: 8.7%
A50: 0.85 | B50: 0.78 | C50: 0.68 | D50: 0.52 | E50: 0.28 | F50: 1.00 | G50: 0.92 | H50: 0.03 | I50: 0.03 | K50: 0.48 | L50: 52.8% | M50: 14.5% | N50: 8.2%
A51: 0.61 | B51: 0.34 | C51: 0.32 | D51: 0.52 | E51: 0.46 | F51: 0.49 | G51: 0.19 | H51: 0.46 | I51: 0.46 | K51: 0.49 | L51: 51.7% | M51: 14.0% | N51: 7.9%
A52: 0.60 | B52: 0.65 | C52: 0.36 | D52: 0.89 | E52: 0.71 | F52: 0.92 | G52: 0.83 | H52: 0.04 | I52: 0.04 | K52: 0.50 | L52: 50.5% | M52: 13.5% | N52: 7.5%
A53: 0.33 | B53: 0.46 | C53: 0.98 | D53: 0.45 | E53: 0.95 | F53: 0.35 | G53: 0.13 | H53: 0.60 | I53: 0.60 | K53: 0.51 | L53: 49.4% | M53: 13.1% | N53: 7.1%
A54: 0.69 | B54: 0.33 | C54: 0.42 | D54: 0.80 | E54: 0.24 | F54: 0.45 | G54: 0.11 | H54: 0.65 | I54: 0.24 | K54: 0.52 | L54: 48.4% | M54: 12.6% | N54: 6.8%
A55: 0.74 | B55: 0.72 | C55: 0.99 | D55: 0.76 | E55: 1.00 | F55: 0.44 | G55: 0.09 | H55: 0.71 | I55: 0.71 | K55: 0.53 | L55: 47.3% | M55: 12.2% | N55: 6.4%
A56: 0.71 | B56: 0.36 | C56: 0.32 | D56: 0.94 | E56: 0.42 | F56: 0.53 | G56: 0.28 | H56: 0.32 | I56: 0.32 | K56: 0.54 | L56: 46.1% | M56: 11.8% | N56: 6.1%
A57: 0.67 | B57: 0.46 | C57: 0.70 | D57: 0.01 | E57: 0.38 | F57: 0.85 | G57: 0.75 | H57: 0.05 | I57: 0.05 | K57: 0.55 | L57: 45.0% | M57: 11.4% | N57: 5.8%
A58: 0.57 | B58: 0.48 | C58: 0.84 | D58: 0.79 | E58: 0.79 | F58: 0.14 | G58: 1.05 | H58: 0.01 | I58: 0.01 | K58: 0.56 | L58: 43.9% | M58: 11.0% | N58: 5.5%
A59: 0.47 | B59: 0.40 | C59: 0.66 | D59: 0.86 | E59: 0.36 | F59: 0.66 | G59: 0.50 | H59: 0.14 | I59: 0.14 | K59: 0.57 | L59: 42.7% | M59: 10.6% | N59: 5.2%
A60: 0.16 | B60: 0.42 | C60: 0.43 | D60: 0.91 | E60: 0.02 | F60: 0.53 | G60: 0.29 | H60: 0.32 | I60: 0.02 | K60: 0.58 | L60: 41.6% | M60: 10.3% | N60: 5.0%
A61: 0.91 | B61: 0.30 | C61: 0.65 | D61: 0.45 | E61: 0.23 | F61: 1.00 | G61: 0.92 | H61: 0.03 | I61: 0.03 | K61: 0.59 | L61: 40.5% | M61: 9.9% | N61: 4.7%
A62: 0.31 | B62: 0.40 | C62: 0.30 | D62: 0.12 | E62: 0.10 | F62: 0.27 | G62: 0.38 | H62: 0.21 | I62: 0.10 | K62: 0.60 | L62: 39.5% | M62: 9.6% | N62: 4.5%
A63: 0.93 | B63: 0.70 | C63: 0.13 | D63: 0.48 | E63: 0.88 | F63: 0.16 | G63: 0.94 | H63: 0.02 | I63: 0.02 | K63: 0.61 | L63: 38.4% | M63: 9.3% | N63: 4.3%
A64: 0.87 | B64: 0.10 | C64: 0.79 | D64: 0.47 | E64: 0.52 | F64: 0.89 | G64: 0.80 | H64: 0.04 | I64: 0.04 | K64: 0.62 | L64: 37.3% | M64: 9.0% | N64: 4.0%
A65: 0.89 | B65: 0.80 | C65: 0.53 | D65: 0.39 | E65: 0.50 | F65: 0.89 | G65: 0.80 | H65: 0.04 | I65: 0.04 | K65: 0.63 | L65: 36.3% | M65: 8.6% | N65: 3.8%
A66: 1.00 | B66: 0.68 | C66: 0.60 | D66: 0.55 | E66: 0.38 | F66: 0.96 | G66: 0.87 | H66: 0.03 | I66: 0.03 | K66: 0.64 | L66: 35.2% | M66: 8.3% | N66: 3.6%
A67: =RAND() -> 0.03 | B67: 0.95 | C67: 0.23 | D67: 0.70 | E67: =ABS(CORREL(A67:D67,A$1:D$1)) -> 0.43 | F67: =ABS(CORREL(A67:C67,B67:D67)) -> 0.99 | G67: =ABS(LN(F67/$J$2)) -> 0.91 | H67: =EXP(-$J$1*G67) -> 0.03 | I67: =MIN(E67,H67) -> 0.03 | K67: 0.65 | L67: =COUNTIF(E:E,">"&K67)/100000 -> 34.1% | M67: =COUNTIF(H:H,">"&K67)/100000 -> 8.0% | N67: =COUNTIF(I:I,">"&K67)/100000 -> 3.4%
A68: 0.17 | B68: 0.53 | C68: 1.00 | D68: 0.02 | E68: 0.76 | F68: 0.58 | G68: 0.38 | H68: 0.22 | I68: 0.22 | K68: 0.66 | L68: 33.0% | M68: 7.7% | N68: 3.2%
A69: 0.56 | B69: 0.75 | C69: 0.28 | D69: 0.04 | E69: 0.45 | F69: 0.44 | G69: 0.10 | H69: 0.67 | I69: 0.45 | K69: 0.67 | L69: 32.0% | M69: 7.5% | N69: 3.0%
A70: 0.26 | B70: 0.93 | C70: 0.73 | D70: 0.97 | E70: 0.02 | F70: 0.62 | G70: 0.44 | H70: 0.17 | I70: 0.02 | K70: 0.68 | L70: 31.0% | M70: 7.2% | N70: 2.8%
A71: 0.17 | B71: 0.03 | C71: 0.04 | D71: 0.45 | E71: 0.26 | F71: 0.45 | G71: 0.11 | H71: 0.65 | I71: 0.26 | K71: 0.69 | L71: 29.9% | M71: 6.9% | N71: 2.6%
A72: 0.16 | B72: 0.89 | C72: 0.06 | D72: 0.73 | E72: 0.67 | F72: 0.96 | G72: 0.87 | H72: 0.03 | I72: 0.03 | K72: 0.70 | L72: 28.9% | M72: 6.6% | N72: 2.5%
A73: 0.51 | B73: 0.94 | C73: 0.40 | D73: 0.94 | E73: 0.68 | F73: 0.98 | G73: 0.90 | H73: 0.03 | I73: 0.03 | K73: 0.71 | L73: 27.9% | M73: 6.3% | N73: 2.3%
A74: 0.06 | B74: 0.81 | C74: 0.63 | D74: 0.96 | E74: 0.06 | F74: 0.26 | G74: 0.43 | H74: 0.18 | I74: 0.06 | K74: 0.72 | L74: 26.8% | M74: 6.1% | N74: 2.1%
A75: 0.16 | B75: 0.70 | C75: 0.78 | D75: 0.89 | E75: 0.35 | F75: 0.90 | G75: 0.81 | H75: 0.04 | I75: 0.04 | K75: 0.73 | L75: 25.8% | M75: 5.8% | N75: 2.0%
A76: 0.03 | B76: 0.62 | C76: 0.47 | D76: 0.74 | E76: 0.04 | F76: 0.32 | G76: 0.23 | H76: 0.40 | I76: 0.04 | K76: 0.74 | L76: 24.8% | M76: 5.5% | N76: 1.8%
A77: 0.02 | B77: 0.33 | C77: 0.09 | D77: 0.13 | E77: 0.37 | F77: 0.76 | G77: 0.64 | H77: 0.08 | I77: 0.08 | K77: 0.75 | L77: 23.8% | M77: 5.3% | N77: 1.7%
A78: 0.71 | B78: 0.43 | C78: 0.14 | D78: 0.17 | E78: 0.63 | F78: 0.81 | G78: 0.70 | H78: 0.06 | I78: 0.06 | K78: 0.76 | L78: 22.8% | M78: 5.0% | N78: 1.6%
A79: 0.90 | B79: 0.20 | C79: 0.22 | D79: 0.21 | E79: 0.30 | F79: 0.98 | G79: 0.90 | H79: 0.03 | I79: 0.03 | K79: 0.77 | L79: 21.9% | M79: 4.8% | N79: 1.4%
A80: 0.48 | B80: 0.74 | C80: 0.61 | D80: 0.54 | E80: 0.03 | F80: 0.64 | G80: 0.47 | H80: 0.15 | I80: 0.03 | K80: 0.78 | L80: 20.9% | M80: 4.6% | N80: 1.3%
A81: 0.15 | B81: 0.77 | C81: 0.21 | D81: 0.70 | E81: 0.52 | F81: 1.00 | G81: 0.92 | H81: 0.03 | I81: 0.03 | K81: 0.79 | L81: 19.9% | M81: 4.3% | N81: 1.1%
A82: 0.30 | B82: 0.30 | C82: 0.20 | D82: 0.58 | E82: 0.43 | F82: 0.95 | G82: 0.87 | H82: 0.03 | I82: 0.03 | K82: 0.80 | L82: 19.0% | M82: 4.1% | N82: 1.0%
A83: 0.77 | B83: 0.11 | C83: 0.30 | D83: 0.68 | E83: 0.20 | F83: 0.54 | G83: 0.31 | H83: 0.29 | I83: 0.20 | K83: 0.81 | L83: 18.1% | M83: 3.8% | N83: 0.8%
A84: 0.48 | B84: 0.37 | C84: 0.26 | D84: 0.47 | E84: 0.77 | F84: 0.47 | G84: 0.17 | H84: 0.51 | I84: 0.51 | K84: 0.82 | L84: 17.1% | M84: 3.6% | N84: 0.7%
A85: 0.82 | B85: 0.64 | C85: 0.88 | D85: 0.51 | E85: 0.57 | F85: 0.99 | G85: 0.90 | H85: 0.03 | I85: 0.03 | K85: 0.83 | L85: 16.1% | M85: 3.4% | N85: 0.6%
A86: 1.00 | B86: 0.20 | C86: 0.86 | D86: 0.77 | E86: 0.42 | F86: 0.73 | G86: 0.60 | H86: 0.09 | I86: 0.09 | K86: 0.84 | L86: 15.2% | M86: 3.1% | N86: 0.6%
A87: 0.39 | B87: 0.04 | C87: 0.41 | D87: 0.79 | E87: 0.21 | F87: 0.07 | G87: 1.76 | H87: 0.00 | I87: 0.00 | K87: 0.85 | L87: 14.3% | M87: 3.0% | N87: 0.5%
A88: 0.15 | B88: 0.00 | C88: 0.53 | D88: 0.79 | E88: 0.48 | F88: 0.54 | G88: 0.30 | H88: 0.30 | I88: 0.30 | K88: 0.86 | L88: 13.4% | M88: 2.7% | N88: 0.5%
A89: 0.86 | B89: 0.78 | C89: 0.75 | D89: 0.45 | E89: 0.00 | F89: 0.74 | G89: 0.62 | H89: 0.08 | I89: 0.00 | K89: 0.87 | L89: 12.4% | M89: 2.5% | N89: 0.4%
A90: 0.67 | B90: 0.04 | C90: 0.44 | D90: 0.51 | E90: 0.19 | F90: 0.68 | G90: 0.54 | H90: 0.12 | I90: 0.12 | K90: 0.88 | L90: 11.5% | M90: 2.3% | N90: 0.4%
A91: 0.08 | B91: 0.71 | C91: 0.73 | D91: 0.53 | E91: 0.42 | F91: 0.45 | G91: 0.13 | H91: 0.60 | I91: 0.42 | K91: 0.89 | L91: 10.7% | M91: 2.1% | N91: 0.3%
A92: 0.25 | B92: 0.51 | C92: 0.96 | D92: 0.68 | E92: 0.84 | F92: 0.21 | G92: 0.63 | H92: 0.08 | I92: 0.08 | K92: 0.90 | L92: 9.8% | M92: 1.9% | N92: 0.3%
A93: 0.17 | B93: 0.38 | C93: 0.48 | D93: 0.79 | E93: 0.20 | F93: 0.90 | G93: 0.81 | H93: 0.04 | I93: 0.04 | K93: 0.91 | L93: 8.9% | M93: 1.7% | N93: 0.2%
A94: 0.82 | B94: 0.02 | C94: 0.86 | D94: 0.97 | E94: 0.46 | F94: 0.37 | G94: 0.08 | H94: 0.74 | I94: 0.46 | K94: 0.92 | L94: 8.0% | M94: 1.5% | N94: 0.2%
A95: 0.92 | B95: 0.28 | C95: 0.35 | D95: 0.15 | E95: 0.17 | F95: 0.06 | G95: 1.95 | H95: 0.00 | I95: 0.00 | K95: 0.93 | L95: 7.0% | M95: 1.3% | N95: 0.2%
A96: 0.17 | B96: 0.62 | C96: 0.22 | D96: 0.69 | E96: 0.48 | F96: 0.97 | G96: 0.89 | H96: 0.03 | I96: 0.03 | K96: 0.94 | L96: 6.0% | M96: 1.1% | N96: 0.1%
A97: 0.27 | B97: 0.74 | C97: 0.76 | D97: 0.62 | E97: 0.42 | F97: 0.41 | G97: 0.03 | H97: 0.90 | I97: 0.42 | K97: 0.95 | L97: 5.0% | M97: 0.9% | N97: 0.1%
A98: 0.66 | B98: 0.92 | C98: 0.43 | D98: 0.59 | E98: 0.83 | F98: 0.34 | G98: 0.16 | H98: 0.53 | I98: 0.53 | K98: 0.96 | L98: 4.1% | M98: 0.7% | N98: 0.1%
A99: 0.27 | B99: 0.79 | C99: 0.69 | D99: 0.39 | E99: 0.28 | F99: 0.55 | G99: 0.32 | H99: 0.28 | I99: 0.28 | K99: 0.97 | L99: 3.1% | M99: 0.5% | N99: 0.0%
A100: 0.95 | B100: 0.42 | C100: 0.55 | D100: 0.51 | E100: 0.13 | F100: 1.00 | G100: 0.91 | H100: 0.03 | I100: 0.03 | K100: 0.98 | L100: 2.1% | M100: 0.4% | N100: 0.0%
A101: 0.78 | B101: 0.98 | C101: 0.93 | D101: 0.63 | E101: 0.23 | F101: 0.40 | G101: 0.01 | H101: 0.97 | I101: 0.23 | K101: 0.99 | L101: 1.0% | M101: 0.2% | N101: 0.0%
A102: 0.96 | B102: 0.24 | C102: 0.73 | D102: 0.58 | E102: 0.32 | F102: 0.91 | G102: 0.82 | H102: 0.04 | I102: 0.04
A103: 0.33 | B103: 0.13 | C103: 0.83 | D103: 0.38 | E103: 0.98 | F103: 0.44 | G103: 0.08 | H103: 0.72 | I103: 0.72
A104: 0.72 | B104: 0.10 | C104: 0.18 | D104: 0.64 | E104: 0.33 | F104: 0.52 | G104: 0.26 | H104: 0.35 | I104: 0.33
A105: 0.28 | B105: 0.13 | C105: 0.83 | D105: 0.50 | E105: 0.95 | F105: 0.17 | G105: 0.87 | H105: 0.03 | I105: 0.03
A106: 0.00 | B106: 0.51 | C106: 0.78 | D106: 0.88 | E106: 0.47 | F106: 1.00 | G106: 0.91 | H106: 0.03 | I106: 0.03
A107: 0.34 | B107: 0.52 | C107: 0.59 | D107: 0.44 | E107: 0.66 | F107: 0.29 | G107: 0.32 | H107: 0.28 | I107: 0.28
A108: 0.98 | B108: 0.80 | C108: 0.66 | D108: 0.75 | E108: 0.70 | F108: 0.42 | G108: 0.05 | H108: 0.82 | I108: 0.70
A109: 0.06 | B109: 0.73 | C109: 0.68 | D109: 0.97 | E109: 0.17 | F109: 0.27 | G109: 0.39 | H109: 0.21 | I109: 0.17
A110: 0.14 | B110: 0.18 | C110: 0.02 | D110: 0.83 | E110: 0.35 | F110: 1.00 | G110: 0.92 | H110: 0.03 | I110: 0.03
A111: 0.85 | B111: 0.68 | C111: 0.36 | D111: 0.05 | E111: 0.37 | F111: 0.99 | G111: 0.90 | H111: 0.03 | I111: 0.03
A112: 0.41 | B112: 0.63 | C112: 0.50 | D112: 0.33 | E112: 0.04 | F112: 0.34 | G112: 0.15 | H112: 0.54 | I112: 0.04
A113: 0.58 | B113: 0.05 | C113: 0.20 | D113: 0.77 | E113: 0.21 | F113: 0.43 | G113: 0.07 | H113: 0.75 | I113: 0.21
A114: 0.92 | B114: 0.77 | C114: 0.71 | D114: 0.22 | E114: 0.03 | F114: 0.78 | G114: 0.67 | H114: 0.07 | I114: 0.03
A115: 0.51 | B115: 0.91 | C115: 0.37 | D115: 0.97 | E115: 0.69 | F115: 0.99 | G115: 0.90 | H115: 0.03 | I115: 0.03
A116: 0.58 | B116: 0.01 | C116: 0.48 | D116: 0.68 | E116: 0.28 | F116: 0.38 | G116: 0.04 | H116: 0.85 | I116: 0.28
A117: 0.14 | B117: 0.06 | C117: 0.17 | D117: 0.03 | E117: 0.64 | F117: 1.00 | G117: 0.91 | H117: 0.03 | I117: 0.03
A118: 0.32 | B118: 0.68 | C118: 0.06 | D118: 0.79 | E118: 0.76 | F118: 0.96 | G118: 0.87 | H118: 0.03 | I118: 0.03
A119: 0.15 | B119: 0.76 | C119: 0.63 | D119: 0.84 | E119: 0.10 | F119: 0.33 | G119: 0.20 | H119: 0.44 | I119: 0.10
A120: 0.12 | B120: 0.24 | C120: 0.21 | D120: 0.06 | E120: 0.28 | F120: 0.45 | G120: 0.11 | H120: 0.64 | I120: 0.28
A121: 0.52 | B121: 0.41 | C121: 0.93 | D121: 0.23 | E121: 0.85 | F121: 0.83 | G121: 0.73 | H121: 0.05 | I121: 0.05
A122: 0.97 | B122: 0.93 | C122: 0.48 | D122: 0.64 | E122: 0.86 | F122: 0.25 | G122: 0.47 | H122: 0.15 | I122: 0.15
A123: 0.09 | B123: 0.30 | C123: 0.47 | D123: 0.68 | E123: 0.35 | F123: 0.99 | G123: 0.91 | H123: 0.03 | I123: 0.03
A124: 0.51 | B124: 0.62 | C124: 0.26 | D124: 0.82 | E124: 0.76 | F124: 0.92 | G124: 0.83 | H124: 0.04 | I124: 0.04
A125: 0.41 | B125: 0.49 | C125: 0.44 | D125: 0.59 | E125: 0.27 | F125: 0.54 | G125: 0.29 | H125: 0.31 | I125: 0.27
A126: 0.77 | B126: 0.41 | C126: 0.47 | D126: 0.88 | E126: 0.30 | F126: 0.47 | G126: 0.16 | H126: 0.54 | I126: 0.30
A127: 0.68 | B127: 0.80 | C127: 0.28 | D127: 0.04 | E127: 0.49 | F127: 0.58 | G127: 0.37 | H127: 0.22 | I127: 0.22
A128: 0.30 | B128: 0.17 | C128: 0.01 | D128: 0.77 | E128: 0.45 | F128: 0.79 | G128: 0.68 | H128: 0.07 | I128: 0.07
A129: 0.50 | B129: 0.51 | C129: 0.73 | D129: 0.37 | E129: 0.81 | F129: 0.76 | G129: 0.64 | H129: 0.08 | I129: 0.08
A130: 0.02 | B130: 0.41 | C130: 0.66 | D130: =RAND() -> 0.21 | E130: 0.74 | F130: 0.33 | G130: 0.20 | H130: 0.45 | I130: 0.45
A131: =RAND() -> 0.47 | B131: 0.31 | C131: 0.35 | D131: 0.52 | E131: =ABS(CORREL(A131:D131,A$1:D$1)) -> 0.23 | F131: =ABS(CORREL(A131:C131,B131:D131)) -> 0.44 | G131: =ABS(LN(F131/$J$2)) -> 0.10 | H131: =EXP(-$J$1*G131) -> 0.66 | I131: =MIN(E131,H131) -> 0.23
A132: 0.74 | B132: 0.99 | C132: 0.89 | D132: 0.47 | E132: 0.15 | F132: 0.30 | G132: 0.31 | H132: 0.30 | I132: 0.15
A133: 0.97 | B133: 0.81 | C133: 0.98 | D133: 0.40 | E133: 0.33 | F133: 0.77 | G133: 0.65 | H133: 0.07 | I133: 0.07
A134: 0.32 | B134: 0.89 | C134: 0.27 | D134: 0.59 | E134: 0.65 | F134: 0.84 | G134: 0.74 | H134: 0.05 | I134: 0.05
A135: 0.85 | B135: 0.68 | C135: 0.07 | D135: 0.61 | E135: 0.95 | F135: 0.21 | G135: 0.64 | H135: 0.08 | I135: 0.08
A136: 0.62 | B136: 0.20 | C136: 0.78 | D136: 0.49 | E136: 0.78 | F136: 0.70 | G136: 0.56 | H136: 0.10 | I136: 0.10
A137: 0.97 | B137: 0.37 | C137: 0.59 | D137: 0.15 | E137: 0.08 | F137: 0.36 | G137: 0.10 | H137: 0.66 | I137: 0.08
A138: 0.77 | B138: 0.86 | C138: 0.67 | D138: 0.52 | E138: 0.35 | F138: 0.49 | G138: 0.20 | H138: 0.45 | I138: 0.35
A139: 0.01 | B139: 0.82 | C139: 0.09 | D139: 0.21 | E139: 0.47 | F139: 0.69 | G139: 0.55 | H139: 0.11 | I139: 0.11
A140: 0.84 | B140: 0.10 | C140: 0.37 | D140: 0.00 | E140: 0.05 | F140: 0.60 | G140: 0.40 | H140: 0.20 | I140: 0.05
A141: 0.65 | B141: 0.37 | C141: 0.93 | D141: 0.28 | E141: 0.81 | F141: 0.92 | G141: 0.83 | H141: 0.04 | I141: 0.04
A142: 0.51 | B142: 0.12 | C142: 0.84 | D142: 0.30 | E142: 0.89 | F142: 0.75 | G142: 0.62 | H142: 0.08 | I142: 0.08
A143: 0.03 | B143: 0.23 | C143: 0.13 | D143: 0.93 | E143: 0.18 | F143: 0.11 | G143: 1.31 | H143: 0.01 | I143: 0.01
A144: 0.37 | B144: 0.66 | C144: 0.68 | D144: 0.55 | E144: 0.46 | F144: 0.42 | G144: 0.06 | H144: 0.79 | I144: 0.46
A145: 0.95 | B145: 0.79 | C145: 0.95 | D145: 0.20 | E145: 0.29 | F145: 0.67 | G145: 0.51 | H145: 0.13 | I145: 0.13
A146: 0.35 | B146: 0.47 | C146: 0.25 | D146: 0.63 | E146: 0.61 | F146: 1.00 | G146: 0.92 | H146: 0.03 | I146: 0.03
A147: 0.71 | B147: 0.75 | C147: 0.89 | D147: 0.01 | E147: 0.35 | F147: 0.93 | G147: 0.84 | H147: 0.03 | I147: 0.03
A148: 0.75 | B148: 0.06 | C148: 0.38 | D148: 0.51 | E148: 0.04 | F148: 0.72 | G148: 0.59 | H148: 0.10 | I148: 0.04
A149: 0.89 | B149: 0.02 | C149: 0.94 | D149: 0.66 | E149: 0.61 | F149: 0.70 | G149: 0.56 | H149: 0.11 | I149: 0.11
A150: 0.36 | B150: 0.04 | C150: 0.26 | D150: 0.57 | E150: 0.05 | F150: 0.22 | G150: 0.62 | H150: 0.08 | I150: 0.05
A151: 0.91 | B151: 0.29 | C151: 0.21 | D151: 0.82 | E151: 0.51 | F151: 0.49 | G151: 0.20 | H151: 0.46 | I151: 0.46
A152: 0.37 | B152: 0.30 | C152: 0.53 | D152: 0.23 | E152: 0.84 | F152: 0.86 | G152: 0.77 | H152: 0.05 | I152: 0.05
A153: 0.95 | B153: 0.13 | C153: 0.84 | D153: 0.52 | E153: 0.49 | F153: 0.89 | G153: 0.80 | H153: 0.04 | I153: 0.04
A154: 0.03 | B154: 0.98 | C154: 0.28 | D154: 0.56 | E154: 0.38 | F154: 0.93 | G154: 0.84 | H154: 0.03 | I154: 0.03
A155: 0.10 | B155: 0.96 | C155: 0.21 | D155: 0.56 | E155: 0.49 | F155: 0.90 | G155: 0.81 | H155: 0.04 | I155: 0.04
A156: 0.39 | B156: 0.54 | C156: 0.68 | D156: 0.84 | E156: 0.37 | F156: 1.00 | G156: 0.91 | H156: 0.03 | I156: 0.03
A157: 0.01 | B157: 0.25 | C157: 0.63 | D157: 0.23 | E157: 0.88 | F157: 0.18 | G157: 0.81 | H157: 0.04 | I157: 0.04
A158: 0.38 | B158: 0.73 | C158: 0.29 | D158: 0.44 | E158: 0.72 | F158: 0.62 | G158: 0.44 | H158: 0.17 | I158: 0.17
A159: 0.36 | B159: 0.92 | C159: 0.50 | D159: 0.92 | E159: 0.38 | F159: 0.96 | G159: 0.88 | H159: 0.03 | I159: 0.03
A160: 0.92 | B160: 0.91 | C160: 0.26 | D160: 0.62 | E160: 0.95 | F160: 0.05 | G160: 2.10 | H160: 0.00 | I160: 0.00
A161: 0.04 | B161: 0.97 | C161: 0.05 | D161: 0.85 | E161: 0.58 | F161: 0.99 | G161: 0.91 | H161: 0.03 | I161: 0.03
A162: 0.76 | B162: 0.41 | C162: 0.49 | D162: 0.69 | E162: 0.23 | F162: 0.55 | G162: 0.31 | H162: 0.28 | I162: 0.23
A163: 0.90 | B163: 0.97 | C163: 0.28 | D163: 0.25 | E163: 0.69 | F163: 0.46 | G163: 0.14 | H163: 0.58 | I163: 0.58
A164: 0.02 | B164: 0.32 | C164: 0.29 | D164: 0.69 | E164: 0.02 | F164: 0.39 | G164: 0.03 | H164: 0.88 | I164: 0.02
A165: 0.31 | B165: 0.14 | C165: 0.52 | D165: 0.98 | E165: 0.25 | F165: 0.61 | G165: 0.42 | H165: 0.18 | I165: 0.18
A166: 0.47 | B166: 0.17 | C166: 0.28 | D166: 0.66 | E166: 0.16 | F166: 0.36 | G166: 0.10 | H166: 0.67 | I166: 0.16
A167: 0.11 | B167: 0.37 | C167: 0.20 | D167: 0.76 | E167: 0.24 | F167: 0.41 | G167: 0.03 | H167: 0.88 | I167: 0.24
A168: 0.09 | B168: 0.67 | C168: 0.94 | D168: 0.03 | E168: 0.63 | F168: 0.52 | G168: 0.26 | H168: 0.35 | I168: 0.35
A169: 0.82 | B169: 0.12 | C169: 0.99 | D169: 0.67 | E169: 0.71 | F169: 0.65 | G169: 0.49 | H169: 0.14 | I169: 0.14
A170: 0.72 | B170: 0.06 | C170: 0.65 | D170: 0.42 | E170: 0.51 | F170: 0.86 | G170: 0.76 | H170: 0.05 | I170: 0.05
A171: 0.63 | B171: 0.75 | C171: 0.25 | D171: 0.19 | E171: 0.66 | F171: 0.36 | G171: 0.11 | H171: 0.65 | I171: 0.65
A172: 0.70 | B172: 0.62 | C172: 0.99 | D172: 0.72 | E172: 1.00 | F172: 0.44 | G172: 0.09 | H172: 0.70 | I172: 0.70
A173: 0.79 | B173: 0.46 | C173: 0.84 | D173: 0.67 | E173: 0.69 | F173: 0.75 | G173: 0.63 | H173: 0.08 | I173: 0.08
A174: 0.89 | B174: 0.66 | C174: 0.04 | D174: 0.21 | E174: 0.77 | F174: 0.50 | G174: 0.22 | H174: 0.42 | I174: 0.42
A175: 0.76 | B175: 0.46 | C175: 0.51 | D175: 0.49 | E175: 0.20 | F175: 0.97 | G175: 0.89 | H175: 0.03 | I175: 0.03
A176: 0.19 | B176: 0.34 | C176: 0.33 | D176: 0.96 | E176: 0.09 | F176: 0.46 | G176: 0.14 | H176: 0.58 | I176: 0.09
A177: 0.46 | B177: 0.42 | C177: 0.71 | D177: 0.32 | E177: 0.87 | F177: 0.78 | G177: 0.66 | H177: 0.07 | I177: 0.07
A178: 0.19 | B178: 0.58 | C178: 0.64 | D178: 0.31 | E178: 0.54 | F178: 0.45 | G178: 0.13 | H178: 0.60 | I178: 0.54
A179: 0.12 | B179: 0.45 | C179: 0.30 | D179: 0.07 | E179: 0.06 | F179: 0.44 | G179: 0.08 | H179: 0.72 | I179: 0.06
A180: 0.72 | B180: 0.97 | C180: 0.90 | D180: 0.42 | E180: 0.20 | F180: 0.35 | G180: 0.14 | H180: 0.56 | I180: 0.20
A181: 0.08 | B181: 0.72 | C181: 0.25 | D181: 0.02 | E181: 0.22 | F181: 0.43 | G181: 0.07 | H181: 0.75 | I181: 0.22
A182: 0.73 | B182: 0.50 | C182: 0.43 | D182: 0.31 | E182: 0.32 | F182: 0.90 | G182: 0.81 | H182: 0.04 | I182: 0.04
A183: 0.23 | B183: 0.07 | C183: 0.76 | D183: 0.16 | E183: 0.98 | F183: 0.59 | G183: 0.39 | H183: 0.21 | I183: 0.21
A184: 0.15 | B184: 0.39 | C184: 0.64 | D184: 0.47 | E184: 0.76 | F184: 0.30 | G184: 0.31 | H184: 0.29 | I184: 0.29
A185: 0.21 | B185: 0.89 | C185: 0.47 | D185: 0.84 | E185: 0.28 | F185: 0.96 | G185: 0.88 | H185: 0.03 | I185: 0.03
A186: 0.16 | B186: 0.89 | C186: 0.14 | D186: 0.00 | E186: 0.44 | F186: 0.34 | G186: 0.15 | H186: 0.55 | I186: 0.44
A187: 0.05 | B187: 0.06 | C187: 0.29 | D187: 0.41 | E187: 0.48 | F187: 0.78 | G187: 0.66 | H187: 0.07 | I187: 0.07
A188: 0.83 | B188: 0.12 | C188: 0.92 | D188: 0.58 | E188: 0.66 | F188: 0.76 | G188: 0.64 | H188: 0.08 | I188: 0.08
A189: 0.55 | B189: 0.91 | C189: 0.94 | D189: 0.84 | E189: 0.44 | F189: 0.32 | G189: 0.21 | H189: 0.42 | I189: 0.42
A190: 0.55 | B190: 0.51 | C190: 0.13 | D190: 0.56 | E190: 0.96 | F190: 0.52 | G190: 0.27 | H190: 0.34 | I190: 0.34
A191: 0.84 | B191: 0.13 | C191: 0.49 | D191: 0.20 | E191: 0.17 | F191: 0.94 | G191: 0.85 | H191: 0.03 | I191: 0.03
A192: 0.14 | B192: 0.70 | C192: 0.71 | D192: 0.52 | E192: 0.42 | F192: 0.45 | G192: 0.12 | H192: 0.62 | I192: 0.42
A193: 0.65 | B193: 0.10 | C193: 0.85 | D193: 0.60 | E193: 0.74 | F193: 0.56 | G193: 0.34 | H193: 0.26 | I193: 0.26
A194: 0.77 | B194: 0.68 | C194: 0.57 | D194: 0.62 | E194: 0.74 | F194: 0.46 | G194: 0.13 | H194: 0.59 | I194: 0.59
A195: =RAND() -> 0.18 | B195: 0.58 | C195: 0.02 | D195: 0.29 | E195: =ABS(CORREL(A195:D195,A$1:D$1)) -> 0.78 | F195: =ABS(CORREL(A195:C195,B195:D195)) -> 0.69 | G195: =ABS(LN(F195/$J$2)) -> 0.54 | H195: =EXP(-$J$1*G195) -> 0.11 | I195: =MIN(E195,H195) -> 0.11
A196: 0.08 | B196: 0.25 | C196: 0.84 | D196: 0.83 | E196: 0.68 | F196: 0.66 | G196: 0.51 | H196: 0.13 | I196: 0.13
A197: 0.97 | B197: 0.33 | C197: 0.93 | D197: 0.68 | E197: 0.55 | F197: 0.85 | G197: 0.75 | H197: 0.05 | I197: 0.05
A198: 0.39 | B198: 0.65 | C198: 0.73 | D198: 0.53 | E198: 0.61 | F198: 0.34 | G198: 0.18 | H198: 0.49 | I198: 0.49
A199: 0.03 | B199: 0.67 | C199: 0.76 | D199: 0.57 | E199: 0.47 | F199: 0.13 | G199: 1.13 | H199: 0.01 | I199: 0.01
A200: 0.50 | B200: 0.74 | C200: 0.95 | D200: 0.49 | E200: 0.74 | F200: 0.51 | G200: 0.25 | H200: 0.37 | I200: 0.37
... 4300 more rows

Sheet 9 variables
A1: 0.10 | B1: 0.20 | C1: 0.30 | D1: 0.40 | E1: 0.50 | F1: 0.60 | G1: 0.70 | H1: 0.80 | I1: 0.90 | J1: correl | K1: lag-1 | L1: r | M1: exp( - a r) | N1: new correl | P1: 4.00 | R1: correl | S1: exp( -a r) | T1: new correl
A2: =RAND() -> 0.25 | B2: =RAND() -> 0.74 | C2: 0.04 | D2: 0.03 | E2: 0.24 | F2: 0.25 | G2: 0.53 | H2: 0.79 | I2: 0.11 | J2: =ABS(CORREL(A2:I2,A$1:I$1)) -> 0.12 | K2: =ABS(CORREL(A2:H2,B2:I2)) -> 0.09 | L2: =ABS(LN(K2/$P$2)) -> 2.37 | M2: =EXP(-$P$1*L2) -> 0.00 | N2: =MIN(J2,M2) -> 0.00 | P2: =ABS(CORREL(A1:H1,B1:I1)) -> 1.00 | Q2: avg | R2: =AVERAGE(J:J) -> 0.29 | S2: =AVERAGE(M:M) -> 0.04 | T2: =AVERAGE(N:N) -> 0.03 | V2: Param P1: try a=4 and a=1, see effect on column S
A3: =RAND() -> 0.41 | B3: 0.19 | C3: 0.50 | D3: 0.91 | E3: 0.55 | F3: 0.87 | G3: 0.17 | H3: 0.58 | I3: 0.38 | J3: =ABS(CORREL(A3:I3,A$1:I$1)) -> 0.06 | K3: =ABS(CORREL(A3:H3,B3:I3)) -> 0.18 | L3: =ABS(LN(K3/$P$2)) -> 1.69 | M3: =EXP(-$P$1*L3) -> 0.00 | N3: =MIN(J3,M3) -> 0.00 | Q3: max | R3: =MAX(J:J) -> 0.95 | S3: =MAX(M:M) -> 0.78 | T3: =MAX(N:N) -> 0.67
A4: 0.13 | B4: 0.60 | C4: 0.78 | D4: 0.19 | E4: 0.81 | F4: 0.03 | G4: 0.49 | H4: 0.33 | I4: 0.39 | J4: 0.08 | K4: 0.60 | L4: 0.51 | M4: 0.13 | N4: 0.08 | Q4: Percentiles | V4: what if this is used to group 10,000 bins summarized by m metrics A - I (here no clustering by design!!! With old correl, tons of spurious groups)
A5: 0.78 | B5: 0.23 | C5: 0.13 | D5: 0.45 | E5: 0.94 | F5: 0.60 | G5: 0.34 | H5: 0.50 | I5: 0.15 | J5: 0.19 | K5: 0.09 | L5: 2.38 | M5: 0.00 | N5: 0.00 | Q5: 0.50 | R5: =PERCENTILE(J:J,Q5) -> 0.26 | S5: =PERCENTILE(M:M,Q5) -> 0.00 | T5: =PERCENTILE(N:N,Q5) -> 0.00 | V5: application to time series / stock trading
A6: 0.03 | B6: 0.81 | C6: 0.40 | D6: 0.02 | E6: 0.58 | F6: 0.88 | G6: 0.98 | H6: 0.53 | I6: 0.50 | J6: 0.41 | K6: 0.05 | L6: 3.00 | M6: 0.00 | N6: 0.00 | Q6: 0.60 | R6: =PERCENTILE(J:J,Q6) -> 0.32 | S6: =PERCENTILE(M:M,Q6) -> 0.01 | T6: =PERCENTILE(N:N,Q6) -> 0.01
A7: 0.61 | B7: 0.63 | C7: 0.59 | D7: 0.41 | E7: 0.38 | F7: 0.87 | G7: 0.06 | H7: 0.88 | I7: 0.10 | J7: 0.30 | K7: 0.83 | L7: 0.18 | M7: 0.48 | N7: 0.30 | Q7: 0.70 | R7: =PERCENTILE(J:J,Q7) -> 0.39 | S7: 0.02 | T7: 0.02 | V7: link to bumpiness and curse of big data
A8: 0.21 | B8: 0.79 | C8: 0.58 | D8: 0.73 | E8: 0.55 | F8: 0.19 | G8: 0.01 | H8: 0.00 | I8: 0.03 | J8: 0.68 | K8: 0.61 | L8: 0.50 | M8: 0.13 | N8: 0.13 | Q8: 0.80 | R8: =PERCENTILE(J:J,Q8) -> 0.47 | S8: 0.05 | T8: 0.04
A9: 0.36 | B9: 0.24 | C9: 0.62 | D9: 0.00 | E9: 0.30 | F9: 0.25 | G9: 0.30 | H9: 0.97 | I9: 0.29 | J9: 0.25 | K9: 0.28 | L9: 1.28 | M9: 0.01 | N9: 0.01 | Q9: 0.90 | R9: =PERCENTILE(J:J,Q9) -> 0.58 | S9: 0.11 | T9: 0.08
A10: 0.30 | B10: 0.80 | C10: 0.18 | D10: 0.22 | E10: 0.85 | F10: 0.27 | G10: 0.24 | H10: 0.12 | I10: 0.54 | J10: 0.15 | K10: 0.35 | L10: 1.05 | M10: 0.01 | N10: 0.01 | Q10: 0.95 | R10: =PERCENTILE(J:J,Q10) -> 0.67 | S10: 0.20 | T10: 0.13
A11: 1.00 | B11: 0.98 | C11: 0.27 | D11: 0.13 | E11: 0.55 | F11: 0.81 | G11: 0.55 | H11: 0.10 | I11: 0.11 | J11: 0.62 | K11: 0.46 | L11: 0.79 | M11: 0.04 | N11: 0.04 | Q11: 0.99 | R11: =PERCENTILE(J:J,Q11) -> 0.81 | S11: 0.43 | T11: 0.25
A12: 0.44 | B12: 0.03 | C12: 0.58 | D12: 0.90 | E12: 0.69 | F12: 0.60 | G12: 0.99 | H12: 0.16 | I12: 0.11 | J12: 0.05 | K12: 0.15 | L12: 1.89 | M12: 0.00 | N12: 0.00
A13: 0.71 | B13: 0.76 | C13: 0.53 | D13: 0.31 | E13: 0.70 | F13: 0.89 | G13: 0.31 | H13: 0.88 | I13: 0.68 | J13: 0.09 | K13: 0.34 | L13: 1.09 | M13: 0.01 | N13: 0.01 | R13: 1% correls > 0.81 | T13: 1% new correls > 0.32
A14: 0.24 | B14: 0.52 | C14: 0.04 | D14: 0.21 | E14: 0.77 | F14: 0.29 | G14: 0.91 | H14: 0.79 | I14: 0.89 | J14: 0.72 | K14: 0.19 | L14: 1.67 | M14: 0.00 | N14: 0.00 | R14: 10% correls > 0.58 | T14: 10% new correls > 0.10
A15: 0.17 | B15: 0.13 | C15: 0.53 | D15: 0.06 | E15: 0.44 | F15: 0.73 | G15: 0.15 | H15: 0.46 | I15: 0.95 | J15: 0.61 | K15: 0.12 | L15: 2.11 | M15: 0.00 | N15: 0.00
A16: 0.48 | B16: 0.33 | C16: 0.82 | D16: 0.30 | E16: 0.94 | F16: 0.22 | G16: 0.86 | H16: 0.15 | I16: 0.63 | J16: 0.01 | K16: 0.86 | L16: 0.15 | M16: 0.55 | N16: 0.01
A17: 0.65 | B17: 0.87 | C17: 0.94 | D17: 0.37 | E17: 0.59 | F17: 0.55 | G17: 0.57 | H17: 0.86 | I17: 0.10 | J17: 0.48 | K17: 0.28 | L17: 1.26 | M17: 0.01 | N17: 0.01
A18: 0.24 | B18: 0.84 | C18: 0.18 | D18: 0.30 | E18: 0.86 | F18: 0.69 | G18: 0.61 | H18: 0.11 | I18: 0.75 | J18: 0.17 | K18: 0.39 | L18: 0.95 | M18: 0.02 | N18: 0.02
A19: 0.70 | B19: 0.23 | C19: 0.10 | D19: 0.55 | E19: 0.42 | F19: 0.54 | G19: 0.60 | H19: 0.98 | I19: 0.62 | J19: 0.51 | K19: 0.26 | L19: 1.33 | M19: 0.00 | N19: 0.00
A20: 0.02 | B20: 0.98 | C20: 0.80 | D20: 0.31 | E20: 0.90 | F20: 0.69 | G20: 0.17 | H20: 0.04 | I20: 0.92 | J20: 0.01 | K20: 0.23 | L20: 1.45 | M20: 0.00 | N20: 0.00
A21: 0.72 | B21: 0.35 | C21: 0.73 | D21: 0.61 | E21: 0.63 | F21: 0.21 | G21: 0.67 | H21: 0.70 | I21: 0.41 | J21: 0.17 | K21: 0.48 | L21: 0.73 | M21: 0.05 | N21: 0.05
A22: 0.70 | B22: 0.05 | C22: 0.64 | D22: 0.38 | E22: 0.97 | F22: 0.98 | G22: 0.20 | H22: 0.77 | I22: 0.37 | J22: 0.08 | K22: 0.35 | L22: 1.06 | M22: 0.01 | N22: 0.01
A23: 0.61 | B23: 0.65 | C23: 0.48 | D23: 0.37 | E23: 0.27 | F23: 0.73 | G23: 0.04 | H23: 0.23 | I23: 0.98 | J23: 0.04 | K23: 0.28 | L23: 1.28 | M23: 0.01 | N23: 0.01
A24: 0.15 | B24: 0.51 | C24: 0.05 | D24: 0.91 | E24: 0.58 | F24: 0.53 | G24: 0.65 | H24: 0.90 | I24: 0.73 | J24: 0.66 | K24: 0.06 | L24: 2.81 | M24: 0.00 | N24: 0.00
A25: 0.98 | B25: 0.90 | C25: 0.98 | D25: 0.04 | E25: 0.39 | F25: 0.76 | G25: 0.51 | H25: 0.69 | I25: 0.39 | J25: 0.46 | K25: 0.09 | L25: 2.37 | M25: 0.00 | N25: 0.00
A26: 0.76 | B26: 0.36 | C26: 0.52 | D26: 0.58 | E26: 0.08 | F26: 0.72 | G26: 0.28 | H26: 0.70 | I26: 0.94 | J26: 0.24 | K26: 0.35 | L26: 1.04 | M26: 0.02 | N26: 0.02
A27: 0.72 | B27: 0.82 | C27: 0.70 | D27: 0.21 | E27: 0.47 | F27: 0.48 | G27: 0.71 | H27: 0.64 | I27: 0.61 | J27: 0.16 | K27: 0.25 | L27: 1.38 | M27: 0.00 | N27: 0.00
A28: 0.42 | B28: 0.38 | C28: 0.36 | D28: 0.72 | E28: 0.63 | F28: 0.88 | G28: 0.37 | H28: 0.01 | I28: 0.97 | J28: 0.19 | K28: 0.22 | L28: 1.50 | M28: 0.00 | N28: 0.00
A29: 0.72 | B29: 0.17 | C29: 0.30 | D29: 0.50 | E29: 0.90 | F29: 0.75 | G29: 0.73 | H29: 0.43 | I29: 0.74 | J29: 0.37 | K29: 0.19 | L29: 1.65 | M29: 0.00 | N29: 0.00
A30: 0.48 | B30: 0.99 | C30: 0.36 | D30: 0.96 | E30: 0.50 | F30: 0.35 | G30: 0.87 | H30: 0.08 | I30: 0.18 | J30: 0.48 | K30: 0.29 | L30: 1.24 | M30: 0.01 | N30: 0.01
A31: 0.25 | B31: 0.67 | C31: 0.36 | D31: 0.50 | E31: 0.54 | F31: 0.20 | G31: 0.43 | H31: 0.13 | I31: 0.22 | J31: 0.48 | K31: 0.16 | L31: 1.85 | M31: 0.00 | N31: 0.00
A32: 0.19 | B32: 0.65 | C32: 0.72 | D32: 0.53 | E32: 0.78 | F32: 0.94 | G32: 0.63 | H32: 0.01 | I32: 0.11 | J32: 0.28 | K32: 0.41 | L32: 0.88 | M32: 0.03 | N32: 0.03
A33: 0.94 | B33: 0.75 | C33: 0.37 | D33: 0.34 | E33: 0.01 | F33: 0.55 | G33: 0.30 | H33: 0.17 | I33: 0.78 | J33: 0.34 | K33: 0.11 | L33: 2.21 | M33: 0.00 | N33: 0.00
A34: 0.32 | B34: 0.69 | C34: 0.06 | D34: 0.03 | E34: 0.54 | F34: 0.93 | G34: 0.97 | H34: 0.56 | I34: 0.21 | J34: 0.25 | K34: 0.33 | L34: 1.12 | M34: 0.01 | N34: 0.01
A35: 0.28 | B35: 0.37 | C35: 0.99 | D35: 0.17 | E35: 0.40 | F35: 0.98 | G35: 0.02 | H35: 0.88 | I35: 0.37 | J35: 0.10 | K35: 0.67 | L35: 0.40 | M35: 0.20 | N35: 0.10
A36: 0.17 | B36: 0.80 | C36: 0.28 | D36: 0.72 | E36: 0.96 | F36: 0.49 | G36: 0.92 | H36: 0.72 | I36: 0.08 | J36: 0.06 | K36: 0.39 | L36: 0.93 | M36: 0.02 | N36: 0.02
A37: 0.73 | B37: 0.69 | C37: 0.28 | D37: 0.04 | E37: 0.94 | F37: 0.76 | G37: 0.87 | H37: 0.82 | I37: 0.48 | J37: 0.20 | K37: 0.14 | L37: 1.98 | M37: 0.00 | N37: 0.00
A38: 0.67 | B38: 0.56 | C38: 0.86 | D38: 0.75 | E38: 0.81 | F38: 0.38 | G38: 0.68 | H38: 0.88 | I38: 0.52 | J38: 0.11 | K38: 0.33 | L38: 1.11 | M38: 0.01 | N38: 0.01
A39: 0.99 | B39: 0.13 | C39: 0.96 | D39: 0.19 | E39: 0.96 | F39: 0.46 | G39: 0.04 | H39: 0.25 | I39: 0.89 | J39: 0.18 | K39: 0.55 | L39: 0.59 | M39: 0.09 | N39: 0.09
A40: 0.05 | B40: 0.19 | C40: 0.33 | D40: 0.44 | E40: 0.58 | F40: 0.74 | G40: 0.35 | H40: 0.99 | I40: 0.14 | J40: 0.47 | K40: 0.13 | L40: 2.05 | M40: 0.00 | N40: 0.00
A41: 0.06 | B41: 0.51 | C41: 0.47 | D41: 0.76 | E41: 0.19 | F41: 0.62 | G41: 0.73 | H41: 0.35 | I41: 0.19 | J41: 0.08 | K41: 0.26 | L41: 1.36 | M41: 0.00 | N41: 0.00
A42: 0.45 | B42: 0.20 | C42: 0.42 | D42: 0.42 | E42: 0.22 | F42: 0.40 | G42: 0.83 | H42: 0.60 | I42: 0.05 | J42: 0.08 | K42: 0.00 | L42: 5.79 | M42: 0.00 | N42: 0.00
A43: 0.33 | B43: 0.72 | C43: 0.74 | D43: 0.73 | E43: 1.00 | F43: 0.97 | G43: 0.76 | H43: 0.02 | I43: 0.82 | J43: 0.02 | K43: 0.02 | L43: 3.86 | M43: 0.00 | N43: 0.00
A44: 0.34 | B44: 0.17 | C44: 0.04 | D44: 0.46 | E44: 0.80 | F44: 0.04 | G44: =RAND() -> 0.27 | H44: 0.51 | I44: 0.13 | J44: 0.03 | K44: 0.21 | L44: 1.58 | M44: 0.00 | N44: 0.00
A45: =RAND() -> 0.02 | B45: 0.87 | C45: 0.67 | D45: 0.10 | E45: 0.28 | F45: 0.80 | G45: 0.70 | H45: 0.62 | I45: 0.86 | J45: 0.47 | K45: 0.07 | L45: 2.71 | M45: 0.00 | N45: 0.00
A46: 0.16 | B46: 0.43 | C46: 0.19 | D46: 0.92 | E46: 0.41 | F46: 0.57 | G46: 0.39 | H46: 0.39 | I46: 0.72 | J46: 0.41 | K46: 0.39 | L46: 0.94 | M46: 0.02 | N46: 0.02
A47: 0.52 | B47: 0.59 | C47: 0.64 | D47: 0.55 | E47: 0.82 | F47: 0.57 | G47: 0.63 | H47: 0.36 | I47: 0.34 | J47: 0.45 | K47: 0.22 | L47: 1.54 | M47: 0.00 | N47: 0.00
A48: 0.71 | B48: 0.45 | C48: 0.21 | D48: 0.30 | E48: 0.76 | F48: 0.51 | G48: 0.12 | H48: 0.24 | I48: 0.55 | J48: 0.25 | K48: 0.05 | L48: 2.92 | M48: 0.00 | N48: 0.00
A49: 0.31 | B49: 0.29 | C49: 0.74 | D49: 0.21 | E49: 0.76 | F49: 0.97 | G49: 0.45 | H49: 0.59 | I49: 0.36 | J49: 0.22 | K49: 0.17 | L49: 1.75 | M49: 0.00 | N49: 0.00
A50: 0.63 | B50: 0.42 | C50: 0.78 | D50: 0.35 | E50: 0.57 | F50: 0.31 | G50: 0.61 | H50: 0.48 | I50: 0.28 | J50: 0.43 | K50: 0.60 | L50: 0.52 | M50: 0.13 | N50: 0.13
A51: 0.80 | B51: 0.00 | C51: 0.21 | D51: 0.50 | E51: 0.90 | F51: 0.69 | G51: 0.95 | H51: 0.37 | I51: 0.38 | J51: 0.15 | K51: 0.14 | L51: 1.95 | M51: 0.00 | N51: 0.00
A52: 0.66 | B52: 0.38 | C52: 0.72 | D52: 0.62 | E52: 0.69 | F52: 0.62 | G52: 0.94 | H52: 0.49 | I52: 0.67 | J52: 0.24 | K52: 0.44 | L52: 0.82 | M52: 0.04 | N52: 0.04
A53: 0.79 | B53: 0.84 | C53: 0.67 | D53: 0.41 | E53: 0.76 | F53: 0.97 | G53: 0.70 | H53: 0.04 | I53: 0.30 | J53: 0.58 | K53: 0.36 | L53: 1.01 | M53: 0.02 | N53: 0.02
A54: 0.35 | B54: 0.73 | C54: 0.77 | D54: 0.66 | E54: 0.05 | F54: 0.49 | G54: 0.31 | H54: 0.63 | I54: 0.18 | J54: 0.37 | K54: 0.14 | L54: 1.96 | M54: 0.00 | N54: 0.00
A55: 0.35 | B55: 0.03 | C55: 0.43 | D55: 0.73 | E55: 0.81 | F55: 0.89 | G55: 0.21 | H55: 0.43 | I55: 0.52 | J55: 0.25 | K55: 0.30 | L55: 1.20 | M55: 0.01 | N55: 0.01
A56: 0.94 | B56: 0.03 | C56: 0.85 | D56: 0.49 | E56: 0.45 | F56: 0.55 | G56: 0.26 | H56: 0.71 | I56: 0.58 | J56: 0.08 | K56: 0.78 | L56: 0.25 | M56: 0.37 | N56: 0.08
A57: 0.77 | B57: 0.01 | C57: 0.30 | D57: 0.90 | E57: 0.59 | F57: 0.48 | G57: 0.39 | H57: 0.78 | I57: 0.68 | J57: 0.28 | K57: 0.10 | L57: 2.30 | M57: 0.00 | N57: 0.00
A58: 0.99 | B58: 0.44 | C58: 0.90 | D58: 0.17 | E58: 0.39 | F58: 0.90 | G58: 0.59 | H58: 0.54 | I58: 0.04 | J58: 0.47 | K58: 0.26 | L58: 1.33 | M58: 0.00 | N58: 0.00
A59: 0.71 | B59: 0.97 | C59: 0.75 | D59: 0.79 | E59: 0.22 | F59: 0.47 | G59: 0.69 | H59: 0.24 | I59: 0.94 | J59: 0.28 | K59: 0.12 | L59: 2.12 | M59: 0.00 | N59: 0.00
A60: 0.04 | B60: 0.71 | C60: 0.98 | D60: 0.43 | E60: 0.91 | F60: 0.04 | G60: 0.70 | H60: 0.25 | I60: 0.77 | J60: 0.07 | K60: 0.53 | L60: 0.63 | M60: 0.08 | N60: 0.07
A61: 0.98 | B61: 0.99 | C61: 0.04 | D61: 0.40 | E61: 0.47 | F61: 0.53 | G61: 0.48 | H61: 0.31 | I61: 0.33 | J61: 0.54 | K61: 0.17 | L61: 1.76 | M61: 0.00 | N61: 0.00
A62: 0.39 | B62: 0.94 | C62: 0.03 | D62: 0.15 | E62: 0.49 | F62: 0.15 | G62: 0.88 | H62: 0.76 | I62: 0.95 | J62: 0.42 | K62: 0.01 | L62: 4.98 | M62: 0.00 | N62: 0.00
A63: 0.28 | B63: 0.10 | C63: 0.34 | D63: 0.40 | E63: 0.66 | F63: 0.26 | G63: 0.79 | H63: 0.51 | I63: 0.06 | J63: 0.21 | K63: 0.07 | L63: 2.65 | M63: 0.00 | N63: 0.00
A64: 0.55 | B64: 0.46 | C64: 0.41 | D64: 0.55 | E64: 0.10 | F64: 0.99 | G64: 0.72 | H64: 0.82 | I64: 0.39 | J64: 0.26 | K64: 0.20 | L64: 1.59 | M64: 0.00 | N64: 0.00
A65: 0.97 | B65: 0.92 | C65: 0.45 | D65: 0.93 | E65: 0.06 | F65: 0.81 | G65: 0.82 | H65: 0.67 | I65: 0.35 | J65: 0.39 | K65: 0.36 | L65: 1.02 | M65: 0.02 | N65: 0.02
A66: 0.78 | B66: 0.84 | C66: 0.06 | D66: 0.91 | E66: 0.46 | F66: 0.48 | G66: 0.30 | H66: 0.55 | I66: 0.41 | J66: 0.38 | K66: 0.47 | L66: 0.75 | M66: 0.05 | N66: 0.05
A67: 0.26 | B67: 0.54 | C67: 0.66 | D67: 0.87 | E67: 0.79 | F67: 0.78 | G67: 0.98 | H67: 0.76 | I67: 0.91 | J67: =ABS(CORREL(A67:I67,A$1:I$1)) -> 0.79 | K67: =ABS(CORREL(A67:H67,B67:I67)) -> 0.66 | L67: =ABS(LN(K67/$P$2)) -> 0.41 | M67: =EXP(-$P$1*L67) -> 0.19 | N67: =MIN(J67,M67) -> 0.19
A68: 0.56 | B68: 0.59 | C68: 0.66 | D68: 0.01 | E68: 0.21 | F68: 0.52 | G68: 0.35 | H68: 0.35 | I68: 0.46 | J68: 0.27 | K68: 0.07 | L68: 2.68 | M68: 0.00 | N68: 0.00
A69: 0.76 | B69: 0.86 | C69: 0.62 | D69: 0.41 | E69: 0.80 | F69: 0.04 | G69: 0.02 | H69: 0.99 | I69: 0.21 | J69: 0.42 | K69: 0.19 | L69: 1.64 | M69: 0.00 | N69: 0.00
A70: 0.99 | B70: 0.54 | C70: 0.32 | D70: 0.52 | E70: 0.21 | F70: 0.74 | G70: 0.54 | H70: 0.68 | I70: 0.36 | J70: 0.28 | K70: 0.22 | L70: 1.52 | M70: 0.00 | N70: 0.00
A71: 0.11 | B71: 0.09 | C71: 0.93 | D71: 0.52 | E71: 0.58 | F71: 0.25 | G71: 0.91 | H71: 0.18 | I71: 0.19 | J71: 0.04 | K71: 0.23 | L71: 1.47 | M71: 0.00 | N71: 0.00
A72: 0.77 | B72: 0.64 | C72: 0.25 | D72: 0.56 | E72: 0.56 | F72: 0.56 | G72: 0.46 | H72: 0.23 | I72: 0.12 | J72: 0.72 | K72: 0.43 | L72: 0.85 | M72: 0.03 | N72: 0.03
A73: 0.11 | B73: 0.19 | C73: 0.50 | D73: 0.70 | E73: 0.17 | F73: 0.62 | G73: 0.89 | H73: 0.06 | I73: 0.66 | J73: 0.38 | K73: 0.30 | L73: 1.20 | M73: 0.01 | N73: 0.01
A74: 0.99 | B74: 0.21 | C74: 0.68 | D74: 0.81 | E74: 0.80 | F74: 0.69 | G74: 0.16 | H74: 0.05 | I74: 0.40 | J74: 0.54 | K74: 0.20 | L74: 1.61 | M74: 0.00 | N74: 0.00
A75: 0.63 | B75: 0.61 | C75: 0.88 | D75: 0.70 | E75: 0.64 | F75: 0.85 | G75: 0.54 | H75: 0.89 | I75: 0.74 | J75: 0.26 | K75: 0.56 | L75: 0.59 | M75: 0.10 | N75: 0.10
A76: 0.44 | B76: 0.01 | C76: 0.74 | D76: 0.59 | E76: 0.21 | F76: =RAND() -> 0.05 | G76: 0.95 | H76: 0.56 | I76: 0.39 | J76: 0.20 | K76: 0.22 | L76: 1.52 | M76: 0.00 | N76: 0.00
A77: 0.33 | B77: 0.19 | C77: 0.25 | D77: 0.24 | E77: 0.46 | F77: 0.91 | G77: 0.76 | H77: 0.74 | I77: 0.82 | J77: 0.85 | K77: 0.76 | L77: 0.27 | M77: 0.34 | N77: 0.34
A78: 0.69 | B78: 0.44 | C78: 0.34 | D78: 0.22 | E78: 0.25 | F78: 0.29 | G78: 0.46 | H78: 0.73 | I78: 0.52 | J78: 0.13 | K78: 0.50 | L78: 0.69 | M78: 0.06 | N78: 0.06
A79: 0.07 | B79: 0.04 | C79: 0.28 | D79: 0.17 | E79: 0.17 | F79: 0.06 | G79: 0.12 | H79: 0.73 | I79: 0.02 | J79: 0.30 | K79: 0.32 | L79: 1.14 | M79: 0.01 | N79: 0.01
A80: 0.09 | B80: 0.23 | C80: 0.12 | D80: 0.48 | E80: 0.88 | F80: 0.90 | G80: 0.36 | H80: 0.12 | I80: 0.66 | J80: 0.41 | K80: 0.38 | L80: 0.98 | M80: 0.02 | N80: 0.02
A81: 0.65 | B81: 0.74 | C81: 0.28 | D81: 0.54 | E81: 0.78 | F81: 0.49 | G81: 0.00 | H81: 0.04 | I81: 0.79 | J81: 0.32 | K81: 0.10 | L81: 2.35 | M81: 0.00 | N81: 0.00
A82: 0.94 | B82: 0.47 | C82: 0.87 | D82: 0.52 | E82: 0.33 | F82: 0.90 | G82: 0.69 | H82: 0.55 | I82: 0.17 | J82: 0.48 | K82: 0.26 | L82: 1.35 | M82: 0.00 | N82: 0.00
A83: 0.57 | B83: 0.87 | C83: 0.31 | D83: 0.33 | E83: 0.21 | F83: 0.09 | G83: 0.89 | H83: 0.24 | I83: 0.23 | J83: 0.37 | K83: 0.13 | L83: 2.02 | M83: 0.00 | N83: 0.00
A84: 0.75 | B84: 0.76 | C84: 0.02 | D84: 0.08 | E84: 0.91 | F84: 1.00 | G84: 0.10 | H84: 0.03 | I84: 0.04 | J84: 0.42 | K84: 0.25 | L84: 1.40 | M84: 0.00 | N84: 0.00
A85: 0.84 | B85: 0.68 | C85: 0.50 | D85: 0.36 | E85: 0.67 | F85: 0.56 | G85: 0.02 | H85: 0.21 | I85: 0.93 | J85: 0.28 | K85: 0.06 | L85: 2.79 | M85: 0.00 | N85: 0.00
A86: 0.73 | B86: 0.49 | C86: 0.84 | D86: 0.17 | E86: 0.86 | F86: 0.92 | G86: 0.25 | H86: 0.30 | I86: 0.71 | J86: 0.17 | K86: 0.34 | L86: 1.06 | M86: 0.01 | N86: 0.01
A87: 0.43 | B87: 0.02 | C87: 0.24 | D87: 0.62 | E87: 0.39 | F87: 0.82 | G87: 0.86 | H87: 0.87 | I87: 0.96 | J87: 0.85 | K87: 0.63 | L87: 0.47 | M87: 0.15 | N87: 0.15
A88: 0.40 | B88: 0.80 | C88: 0.21 | D88: 0.97 | E88: 0.31 | F88: 0.31 | G88: 0.22 | H88: 0.82 | I88: 0.27 | J88: 0.17 | K88: 0.62 | L88: 0.48 | M88: 0.14 | N88: 0.14
A89: 0.95 | B89: 0.60 | C89: 0.31 | D89: 0.81 | E89: 0.09 | F89: 0.66 | G89: 0.33 | H89: 0.77 | I89: 0.36 | J89: 0.32 | K89: 0.63 | L89: 0.46 | M89: 0.16 | N89: 0.16
A90: 0.79 | B90: 0.12 | C90: 0.34 | D90: 0.44 | E90: 0.64 | F90: 0.37 | G90: 0.97 | H90: 0.84 | I90: 0.19 | J90: 0.15 | K90: 0.11 | L90: 2.23 | M90: 0.00 | N90: 0.00
A91: 0.92 | B91: 0.27 | C91: 0.82 | D91: 0.04 | E91: 0.61 | F91: 0.07 | G91: 0.04 | H91: 0.99 | I91: 0.76 | J91: 0.01 | K91: 0.29 | L91: 1.25 | M91: 0.01 | N91: 0.01
A92: 0.87 | B92: 0.08 | C92: 0.72 | D92: 0.63 | E92: 0.18 | F92: 0.58 | G92: 0.71 | H92: 0.13 | I92: 0.79 | J92: 0.04 | K92: 0.72 | L92: 0.34 | M92: 0.26 | N92: 0.04
A93: 0.37 | B93: 0.99 | C93: 0.15 | D93: 0.18 | E93: 0.66 | F93: 0.53 | G93: 0.33 | H93: 0.52 | I93: 0.76 | J93: 0.14 | K93: 0.30 | L93: 1.19 | M93: 0.01 | N93: 0.01
A94: 0.65 | B94: 0.93 | C94: 0.13 | D94: 0.92 | E94: 0.86 | F94: 0.19 | G94: 0.30 | H94: 0.77 | I94: 0.01 | J94: 0.43 | K94: 0.37 | L94: 0.99 | M94: 0.02 | N94: 0.02
A95: 0.12 | B95: 0.47 | C95: 0.05 | D95: 0.13 | E95: 0.51 | F95: 0.09 | G95: 0.59 | H95: 0.68 | I95: 0.00 | J95: 0.20 | K95: 0.36 | L95: 1.02 | M95: 0.02 | N95: 0.02
A96: 0.03 | B96: 0.65 | C96: 0.63 | D96: 0.06 | E96: 0.33 | F96: 0.05 | G96: 0.59 | H96: 0.26 | I96: 0.52 | J96: 0.12 | K96: 0.40 | L96: 0.91 | M96: 0.03 | N96: 0.03
A97: 0.05 | B97: 0.60 | C97: 0.21 | D97: 0.65 | E97: 0.51 | F97: 0.04 | G97: 0.59 | H97: 0.36 | I97: 0.60 | J97: 0.30 | K97: 0.63 | L97: 0.47 | M97: 0.16 | N97: 0.16
A98: 0.74 | B98: 0.11 | C98: 0.50 | D98: 0.90 | E98: 0.11 | F98: 0.23 | G98: 0.80 | H98: 0.74 | I98: 0.35 | J98: 0.04 | K98: 0.26 | L98: 1.35 | M98: 0.00 | N98: 0.00
A99: 0.52 | B99: 0.36 | C99: 0.34 | D99: 0.68 | E99: 0.28 | F99: 0.78 | G99: 0.39 | H99: 0.62 | I99: 0.10 | J99: 0.15 | K99: 0.70 | L99: 0.36 | M99: 0.24 | N99: 0.15
A100: 0.89 | B100: 0.69 | C100: 0.01 | D100: 0.52 | E100: 0.06 | F100: 0.21 | G100: 0.93 | H100: 0.56 | I100: 0.89 | J100: 0.15 | K100: 0.02 | L100: 4.16 | M100: 0.00 | N100: 0.00
A101: 0.41 | B101: 0.54 | C101: 0.08 | D101: 0.79 | E101: 0.36 | F101: 0.97 | G101: 0.17 | H101: 0.55 | I101: 0.95 | J101: 0.36 | K101: 0.56 | L101: 0.58 | M101: 0.10 | N101: 0.10
A102: 0.17 | B102: 0.09 | C102: 0.41 | D102: 0.64 | E102: 0.78 | F102: 0.24 | G102: 0.12 | H102: 0.51 | I102: 0.03 | J102: 0.05 | K102: 0.13 | L102: 2.01 | M102: 0.00 | N102: 0.00
A103: 0.20 | B103: 0.68 | C103: 0.77 | D103: 0.57 | E103: 0.18 | F103: 0.32 | G103: 0.23 | H103: 0.01 | I103: 0.43 | J103: 0.44 | K103: 0.32 | L103: 1.13 | M103: 0.01 | N103: 0.01
A104: 0.27 | B104: 0.46 | C104: 0.27 | D104: 0.13 | E104: 0.08 | F104: 0.91 | G104: 0.23 | H104: 0.97 | I104: 0.77 | J104: 0.57 | K104: 0.05 | L104: 3.10 | M104: 0.00 | N104: 0.00
A105: 0.68 | B105: 0.71 | C105: 0.60 | D105: 0.08 | E105: 0.76 | F105: 0.11 | G105: 0.45 | H105: 0.63 | I105: 0.46 | J105: 0.25 | K105: 0.39 | L105: 0.95 | M105: 0.02 | N105: 0.02
A106: 0.22 | B106: 0.60 | C106: 0.07 | D106: 0.64 | E106: 0.54 | F106: 0.62 | G106: 0.26 | H106: 0.63 | I106: 0.65 | J106: 0.44 | K106: 0.47 | L106: 0.76 | M106: 0.05 | N106: 0.05
A107: 0.48 | B107: 0.84 | C107: 0.57 | D107: 0.48 | E107: 0.50 | F107: 0.63 | G107: 0.30 | H107: 0.93 | I107: 0.69 | J107: 0.17 | K107: 0.34 | L107: 1.09 | M107: 0.01 | N107: 0.01
A108: 0.55 | B108: 0.51 | C108: 0.11 | D108: 0.81 | E108: =RAND() -> 0.32 | F108: 0.08 | G108: 0.39 | H108: 0.78 | I108: 0.96 | J108: 0.34 | K108: 0.06 | L108: 2.88 | M108: 0.00 | N108: 0.00
A109: =RAND() -> 0.62 | B109: 0.38 | C109: 0.31 | D109: 0.17 | E109: 0.18 | F109: 0.94 | G109: 0.07 | H109: 0.19 | I109: 0.32 | J109: 0.24 | K109: 0.32 | L109: 1.15 | M109: 0.01 | N109: 0.01
A110: 0.43 | B110: 0.81 | C110: 0.59 | D110: 0.85 | E110: 0.75 | F110: 0.05 | G110: 0.12 | H110: 0.09 | I110: 0.81 | J110: 0.33 | K110: 0.26 | L110: 1.36 | M110: 0.00 | N110: 0.00
A111: 0.27 | B111: 0.66 | C111: 0.28 | D111: 0.46 | E111: 0.28 | F111: 0.41 | G111: 0.04 | H111: 0.50 | I111: 0.57 | J111: 0.04 | K111: 0.40 | L111: 0.92 | M111: 0.03 | N111: 0.03
A112: 0.57 | B112: 0.69 | C112: 0.92 | D112: 0.53 | E112: 0.40 | F112: 0.68 | G112: 0.97 | H112: 0.87 | I112: 0.49 | J112: 0.11 | K112: 0.08 | L112: 2.51 | M112: 0.00 | N112: 0.00
A113: 0.28 | B113: 0.93 | C113: 0.26 | D113: 0.63 | E113: 0.53 | F113: 0.97 | G113: 0.86 | H113: 0.57 | I113: 0.94 | J113: 0.51 | K113: 0.41 | L113: 0.88 | M113: 0.03 | N113: 0.03
A114: 0.49 | B114: 0.49 | C114: 0.64 | D114: 0.87 | E114: 0.31 | F114: 0.64 | G114: 0.95 | H114: 0.10 | I114: 0.29 | J114: 0.26 | K114: 0.17 | L114: 1.75 | M114: 0.00 | N114: 0.00
A115: 0.59 | B115: 0.21 | C115: 0.74 | D115: 0.26 | E115: 0.27 | F115: 0.17 | G115: 0.02 | H115: 0.09 | I115: 0.12 | J115: 0.72 | K115: 0.13 | L115: 2.04 | M115: 0.00 | N115: 0.00
A116: 0.32 | B116: 0.89 | C116: 0.64 | D116: 0.26 | E116: 0.22 | F116: 0.39 | G116: 0.54 | H116: 0.77 | I116: 0.23 | J116: 0.15 | K116: 0.04 | L116: 3.34 | M116: 0.00 | N116: 0.00
A117: 0.10 | B117: 0.18 | C117: 0.08 | D117: 0.14 | E117: 0.66 | F117: 0.74 | G117: 0.62 | H117: 0.01 | I117: 0.54 | J117: 0.46 | K117: 0.25 | L117: 1.39 | M117: 0.00 | N117: 0.00
A118: 0.35 | B118: 0.36 | C118: 0.80 | D118: 0.64 | E118: 0.25 | F118: 0.09 | G118: 0.39 | H118: 0.13 | I118: 0.66 | J118: 0.15 | K118: 0.06 | L118: 2.80 | M118: 0.00 | N118: 0.00
A119: 0.87 | B119: 0.43 | C119: 0.35 | D119: 0.79 | E119: 0.32 | F119: 0.47 | G119: 0.69 | H119: 0.54 | I119: 0.08 | J119: 0.45 | K119: 0.32 | L119: 1.14 | M119: 0.01 | N119: 0.01
A120: 0.69 | B120: 0.69 | C120: 0.53 | D120: 0.88 | E120: 0.33 | F120: 0.99 | G120: 0.87 | H120: 0.42 | I120: 0.66 | J120: 0.03 | K120: 0.51 | L120: 0.67 | M120: 0.07 | N120: 0.03
A121: 0.75 | B121: 0.68 | C121: 0.24 | D121: 0.73 | E121: 0.23 | F121: 0.50 | G121: 0.37 | H121: 0.30 | I121: 0.98 | J121: 0.04 | K121: 0.46 | L121: 0.78 | M121: 0.04 | N121: 0.04
A122: 0.87 | B122: 0.33 | C122: 0.99 | D122: 0.66 | E122: 0.77 | F122: 0.20 | G122: 0.70 | H122: 0.49 | I122: 0.68 | J122: 0.23 | K122: 0.57 | L122: 0.56 | M122: 0.11 | N122: 0.11
A123: 0.53 | B123: 0.69 | C123: 0.09 | D123: 0.99 | E123: 0.32 | F123: 0.23 | G123: 0.97 | H123: 0.15 | I123: 0.87 | J123: 0.09 | K123: 0.77 | L123: 0.26 | M123: 0.35 | N123: 0.09
A124: 0.95 | B124: 0.20 | C124: 0.09 | D124: 1.00 | E124: 0.88 | F124: 0.17 | G124: 0.74 | H124: 0.06 | I124: 0.00 | J124: 0.40 | K124: 0.09 | L124: 2.43 | M124: 0.00 | N124: 0.00
A125: 0.21 | B125: 0.97 | C125: 0.14 | D125: 0.67 | E125: 0.60 | F125: 0.28 | G125: 0.53 | H125: 0.05 | I125: 0.58 | J125: 0.13 | K125: 0.66 | L125: 0.41 | M125: 0.19 | N125: 0.13
A126: 0.69 | B126: 0.92 | C126: 0.36 | D126: 0.79 | E126: 0.68 | F126: 0.77 | G126: 0.70 | H126: 0.62 | I126: 0.78 | J126: 0.05 | K126: 0.63 | L126: 0.46 | M126: 0.16 | N126: 0.05
A127: 0.58 | B127: 0.63 | C127: 0.81 | D127: 0.82 | E127: 0.28 | F127: 0.91 | G127: 0.27 | H127: 0.92 | I127: 0.24 | J127: 0.24 | K127: 0.81 | L127: 0.21 | M127: 0.43 | N127: 0.24
A128: 0.74 | B128: 0.82 | C128: 0.60 | D128: 0.66 | E128: 0.64 | F128: 0.80 | G128: 0.61 | H128: 0.10 | I128: 0.18 | J128: 0.75 | K128: 0.61 | L128: 0.50 | M128: 0.13 | N128: 0.13
A129: 0.58 | B129: 0.76 | C129: 0.15 | D129: 0.11 | E129: 0.61 | F129: 0.41 | G129: 0.98 | H129: 0.47 | I129: 0.61 | J129: 0.20 | K129: 0.07 | L129: 2.63 | M129: 0.00 | N129: 0.00
A130: 0.10 | B130: 0.20 | C130: 0.82 | D130: 0.77 | E130: 0.42 | F130: 0.21 | G130: 0.26 | H130: 0.26 | I130: 0.33 | J130: 0.10 | K130: 0.41 | L130: 0.90 | M130: 0.03 | N130: 0.03
A131: 0.47 | B131: 0.18 | C131: 0.41 | D131: 0.98 | E131: 0.15 | F131: 0.27 | G131: 0.52 | H131: 0.50 | I131: 0.22 | J131: =ABS(CORREL(A131:I131,A$1:I$1)) -> 0.10 | K131: =ABS(CORREL(A131:H131,B131:I131)) -> 0.29 | L131: =ABS(LN(K131/$P$2)) -> 1.23 | M131: =EXP(-$P$1*L131) -> 0.01 | N131: =MIN(J131,M131) -> 0.01
A132: 0.49 | B132: 0.29 | C132: 0.26 | D132: 0.49 | E132: 0.62 | F132: 0.37 | G132: 0.88 | H132: 0.79 | I132: 1.00 | J132: 0.81 | K132: 0.52 | L132: 0.66 | M132: 0.07 | N132: 0.07
A133: 0.24 | B133: 0.42 | C133: 0.12 | D133: 0.12 | E133: 0.48 | F133: 0.79 | G133: 0.37 | H133: 0.31 | I133: 0.57 | J133: 0.45 | K133: 0.15 | L133: 1.89 | M133: 0.00 | N133: 0.00
A134: 0.32 | B134: 0.25 | C134: 0.18 | D134: 0.18 | E134: 0.75 | F134: 0.12 | G134: 0.59 | H134: 0.76 | I134: 0.87 | J134: 0.70 | K134: 0.18 | L134: 1.71 | M134: 0.00 | N134: 0.00
A135: 0.29 | B135: 0.22 | C135: 0.13 | D135: 0.07 | E135: 0.49 | F135: 0.73 | G135: 0.24 | H135: 0.20 | I135: 0.94 | J135: 0.53 | K135: 0.03 | L135: 3.68 | M135: 0.00 | N135: 0.00
A136: 0.31 | B136: 0.37 | C136: 0.15 | D136: 0.02 | E136: 0.08 | F136: 0.84 | G136: 0.62 | H136: 0.28 | I136: 0.40 | J136: 0.32 | K136: 0.23 | L136: 1.45 | M136: 0.00 | N136: 0.00
A137: 0.25 | B137: 0.72 | C137: 0.32 | D137: 0.26 | E137: 0.62 | F137: 0.61 | G137: 0.69 | H137: 0.37 | I137: 0.87 | J137: 0.50 | K137: 0.36 | L137: 1.01 | M137: 0.02 | N137: 0.02
A138: 0.12 | B138: 0.72 | C138: 0.13 | D138: 0.19 | E138: 0.81 | F138: 0.05 | G138: 0.35 | H138: 0.06 | I138: 0.14 | J138: 0.26 | K138: 0.47 | L138: 0.76 | M138: 0.05 | N138: 0.05
A139: 0.87 | B139: 0.22 | C139: 0.23 | D139: 0.93 | E139: 0.92 | F139: 0.60 | G139: 0.05 | H139: 0.89 | I139: 0.86 | J139: 0.16 | K139: 0.07 | L139: 2.72 | M139: 0.00 | N139: 0.00
A140: 0.29 | B140: 0.08 | C140: 0.18 | D140: =RAND() -> 0.01 | E140: 0.13 | F140: 0.91 | G140: 0.23 | H140: 0.23 | I140: 0.66 | J140: 0.45 | K140: 0.08 | L140: 2.49 | M140: 0.00 | N140: 0.00
A141: 0.44 | B141: 0.38 | C141: 0.30 | D141: 0.01 | E141: 0.87 | F141: 0.85 | G141: 0.43 | H141: 0.75 | I141: 0.76 | J141: 0.55 | K141: 0.16 | L141: 1.84 | M141: 0.00 | N141: 0.00
A142: 0.95 | B142: 0.96 | C142: 0.32 | D142: 0.86 | E142: 0.68 | F142: 0.73 | G142: 0.46 | H142: 0.06 | I142: 0.21 | J142: 0.76 | K142: 0.36 | L142: 1.01 | M142: 0.02 | N142: 0.02
A143: 0.92 | B143: 0.91 | C143: 0.09 | D143: 0.85 | E143: 0.86 | F143: 0.01 | G143: 0.01 | H143: 0.59 | I143: 0.65 | J143: 0.35 | K143: 0.02 | L143: 3.79 | M143: 0.00 | N143: 0.00
A144: 0.67 | B144: 0.77 | C144: 0.26 | D144: 0.06 | E144: 0.83 | F144: 0.90 | G144: 0.70 | H144: 0.65 | I144: 0.27 | J144: 0.04 | K144: 0.16 | L144: 1.85 | M144: 0.00 | N144: 0.00
A145: 0.86 | B145: 0.82 | C145: 0.44 | D145: 0.52 | E145: 0.96 | F145: 0.92 | G145: 0.86 | H145: 0.90 | I145: 0.55 | J145: 0.06 | K145: 0.19 | L145: 1.66 | M145: 0.00 | N145: 0.00
A146: 0.75 | B146: 0.50 | C146: 0.31 | D146: 0.43 | E146: 0.76 | F146: 0.85 | G146: 0.48 | H146: 0.04 | I146: 0.74 | J146: 0.12 | K146: 0.05 | L146: 2.97 | M146: 0.00 | N146: 0.00
A147: 0.83 | B147: 0.49 | C147: 0.64 | D147: 0.85 | E147: 0.61 | F147: 0.14 | G147: 0.70 | H147: 0.84 | I147: 0.85 | J147: 0.11 | K147: 0.01 | L147: 4.45 | M147: 0.00 | N147: 0.00
A148: 0.87 | B148: 0.96 | C148: 0.37 | D148: 0.67 | E148: 0.94 | F148: 0.65 | G148: 0.86 | H148: 0.35 | I148: 0.30 | J148: 0.54 | K148: 0.07 | L148: 2.68 | M148: 0.00 | N148: 0.00
A149: 0.53 | B149: 0.33 | C149: 0.97 | D149: 0.94 | E149: 0.78 | F149: 0.90 | G149: 0.30 | H149: 0.14 | I149: 0.22 | J149: 0.44 | K149: 0.47 | L149: 0.75 | M149: 0.05 | N149: 0.05
A150: 0.76 | B150: 0.66 | C150: 0.87 | D150: 0.08 | E150: 0.38 | F150: 0.92 | G150: 0.89 | H150: 0.60 | I150: 0.02 | J150: 0.29 | K150: 0.05 | L150: 3.00 | M150: 0.00 | N150: 0.00
A151: 0.47 | B151: 0.54 | C151: 0.36 | D151: 0.99 | E151: 0.73 | F151: 0.72 | G151: 0.99 | H151: 0.46 | I151: 0.79 | J151: 0.40 | K151: 0.21 | L151: 1.56 | M151: 0.00 | N151: 0.00
A152: 0.25 | B152: 0.33 | C152: 0.11 | D152: 0.52 | E152: 0.94 | F152: 0.28 | G152: 0.03 | H152: 0.56 | I152: 0.92 | J152: 0.42 | K152: 0.11 | L152: 2.18 | M152: 0.00 | N152: 0.00
A153: 0.66 | B153: 0.85 | C153: 0.97 | D153: 0.01 | E153: 0.10 | F153: 0.84 | G153: 0.61 | H153: 0.45 | I153: 0.03 | J153: 0.44 | K153: 0.12 | L153: 2.10 | M153: 0.00 | N153: 0.00
A154: 0.63 | B154: 0.87 | C154: 0.99 | D154: 0.53 | E154: 0.41 | F154: 0.25 | G154: 0.77 | H154: 0.35 | I154: 0.61 | J154: 0.44 | K154: 0.13 | L154: 2.05 | M154: 0.00 | N154: 0.00
A155: 0.09 | B155: 0.92 | C155: 0.23 | D155: 0.45 | E155: 0.42 | F155: 0.20 | G155: 0.98 | H155: 0.22 | I155: 0.66 | J155: 0.21 | K155: 0.77 | L155: 0.27 | M155: 0.34 | N155: 0.21
A156: 0.29 | B156: 0.89 | C156: 0.23 | D156: 0.09 | E156: 0.92 | F156: 0.18 | G156: 0.26 | H156: 0.84 | I156: 0.16 | J156: 0.07 | K156: 0.57 | L156: 0.56 | M156: 0.11 | N156: 0.07
A157: 0.24 | B157: 0.48 | C157: 0.10 | D157: 0.88 | E157: 0.52 | F157: 0.72 | G157: 0.35 | H157: 0.07 | I157: 0.09 | J157: 0.23 | K157: 0.03 | L157: 3.46 | M157: 0.00 | N157: 0.00
A158: 0.30 | B158: 0.07 | C158: 0.09 | D158: 0.02 | E158: 0.14 | F158: 0.83 | G158: 0.12 | H158: 0.07 | I158: 0.83 | J158: 0.42 | K158: 0.21 | L158: 1.56 | M158: 0.00 | N158: 0.00
A159: 0.77 | B159: 0.28 | C159: 0.78 | D159: 0.15 | E159: 0.56 | F159: 0.92 | G159: 0.55 | H159: 0.44 | I159: 0.38 | J159: 0.14 | K159: 0.41 | L159: 0.89 | M159: 0.03 | N159: 0.03
A160: 0.92 | B160: 0.47 | C160: 0.10 | D160: 0.97 | E160: 0.06 | F160: 0.11 | G160: 0.60 | H160: 0.54 | I160: 0.59 | J160: 0.13 | K160: 0.34 | L160: 1.08 | M160: 0.01 | N160: 0.01
A161: 0.51 | B161: 0.51 | C161: 0.67 | D161: 0.85 | E161: 0.45 | F161: 0.87 | G161: 0.94 | H161: 0.44 | I161: 0.22 | J161: 0.16 | K161: 0.09 | L161: 2.44 | M161: 0.00 | N161: 0.00
A162: 0.58 | B162: 0.34 | C162: 0.38 | D162: 0.09 | E162: 0.09 | F162: 0.36 | G162: 0.42 | H162: 0.53 | I162: 0.16 | J162: 0.20 | K162: 0.17 | L162: 1.78 | M162: 0.00 | N162: 0.00
A163: 0.93 | B163: 0.69 | C163: 0.72 | D163: 0.33 | E163: 0.90 | F163: 0.96 | G163: 0.47 | H163: 0.48 | I163: 0.68 | J163: 0.31 | K163: 0.12 | L163: 2.13 | M163: 0.00 | N163: 0.00
A164: 0.50 | B164: 0.30 | C164: 0.54 | D164: 0.15 | E164: 0.24 | F164: 0.69 | G164: 0.19 | H164: 0.17 | I164: 0.92 | J164: 0.20 | K164: 0.49 | L164: 0.71 | M164: 0.06 | N164: 0.06
A165: 0.87 | B165: 0.72 | C165: 0.33 | D165: 0.19 | E165: 0.98 | F165: 0.79 | G165: 0.33 | H165: 0.19 | I165: 0.26 | J165: 0.49 | K165: 0.25 | L165: 1.38 | M165: 0.00 | N165: 0.00
A166: 0.04 | B166: 0.16 | C166: 0.05 | D166: 0.45 | E166: 0.92 | F166: 0.28 | G166: 0.16 | H166: 0.56 | I166: 0.72 | J166: 0.59 | K166: 0.26 | L166: 1.35 | M166: 0.00 | N166: 0.00
A167: 0.40 | B167: 0.76 | C167: 0.98 | D167: 0.44 | E167: 0.62 | F167: 0.43 | G167: 0.20 | H167: 0.65 | I167: 0.39 | J167: 0.38 | K167: 0.04 | L167: 3.26 | M167: 0.00 | N167: 0.00
A168: 0.06 | B168: 0.98 | C168: 0.77 | D168: 0.35 | E168: 0.26 | F168: 0.90 | G168: 0.78 | H168: 0.85 | I168: 0.34 | J168: 0.18 | K168: 0.25 | L168: 1.40 | M168: 0.00 | N168: 0.00
A169: 0.98 | B169: 0.21 | C169: 0.57 | D169: 0.79 | E169: 0.49 | F169: 0.42 | G169: 0.15 | H169: 0.56 | I169: 0.91 | J169: 0.07 | K169: 0.22 | L169: 1.51 | M169: 0.00 | N169: 0.00
A170: 0.18 | B170: 0.93 | C170: 0.49 | D170: 0.70 | E170: 0.70 | F170: 0.02 | G170: 0.66 | H170: 0.56 | I170: 0.76 | J170: 0.14 | K170: 0.49 | L170: 0.71 | M170: 0.06 | N170: 0.06
A171: 0.52 | B171: 0.89 | C171: 0.62 | D171: 0.68 | E171: 0.30 | F171: 0.82 | G171: 0.53 | H171: 0.54 | I171: 0.61 | J171: 0.20 | K171: 0.49 | L171: 0.71 | M171: 0.06 | N171: 0.06
A172: 0.75 | B172: 0.99 | C172: =RAND() -> 0.57 | D172: 0.09 | E172: 0.30 | F172: 0.95 | G172: 0.32 | H172: 0.13 | I172: 0.38 | J172: 0.50 | K172: 0.18 | L172: 1.71 | M172: 0.00 | N172: 0.00
A173: =RAND() -> 0.42 | B173: 0.14 | C173: 0.18 | D173: 0.55 | E173: 0.09 | F173: 0.08 | G173: 0.79 | H173: 0.69 | I173: 0.92 | J173: 0.62 | K173: 0.32 | L173: 1.12 | M173: 0.01 | N173: 0.01
A174: 0.80 | B174: 0.91 | C174: 0.18 | D174: 0.58 | E174: 0.80 | F174: 0.88 | G174: 0.27 | H174: 0.85 | I174: 0.33 | J174: 0.25 | K174: 0.42 | L174: 0.87 | M174: 0.03 | N174: 0.03
A175: 0.12 | B175: 0.14 | C175: 0.31 | D175: 0.47 | E175: 0.10 | F175: 0.15 | G175: 0.20 | H175: 0.08 | I175: 0.45 | J175: 0.18 | K175: 0.15 | L175: 1.90 | M175: 0.00 | N175: 0.00
A176: 0.54 | B176: 0.83 | C176: 0.01 | D176: 0.62 | E176: 0.80 | F176: 0.13 | G176: 0.29 | H176: 0.71 | I176: 0.36 | J176: 0.16 | K176: 0.41 | L176: 0.89 | M176: 0.03 | N176: 0.03
A177: 0.84 | B177: 0.84 | C177: 0.99 | D177: 0.07 | E177: 0.72 | F177: 0.20 | G177: 0.03 | H177: 0.24 | I177: 0.16 | J177: 0.75 | K177: 0.25 | L177: 1.38 | M177: 0.00 | N177: 0.00
A178: 0.52 | B178: 0.98 | C178: 0.39 | D178: 0.46 | E178: 0.96 | F178: 0.89 | G178: 0.40 | H178: 0.01 | I178: 0.32 | J178: 0.45 | K178: 0.22 | L178: 1.51 | M178: 0.00 | N178: 0.00
A179: 0.17 | B179: 0.66 | C179: 0.58 | D179: 0.58 | E179: 0.82 | F179: 0.22 | G179: 0.03 | H179: 0.98 | I179: 0.24 | J179: 0.03 | K179: 0.42 | L179: 0.87 | M179: 0.03 | N179: 0.03
A180: 0.38 | B180: 0.01 | C180: 0.70 | D180: 0.21 | E180: 0.63 | F180: 0.73 | G180: 0.92 | H180: 0.16 | I180: 0.35 | J180: 0.20 | K180: 0.14 | L180: 1.94 | M180: 0.00 | N180: 0.00
A181: 0.61 | B181: 0.07 | C181: 0.52 | D181: 0.71 | E181: 0.57 | F181: 0.67 | G181: 0.39 | H181: 0.84 | I181: 0.08 | J181: 0.02 | K181: 0.46 | L181: 0.78 | M181: 0.04 | N181: 0.02
A182: 0.47 | B182: 0.52 | C182: 0.78 | D182: 0.25 | E182: 0.89 | F182: 0.61 | G182: 0.29 | H182: 0.76 | I182: 0.02 | J182: 0.28 | K182: 0.66 | L182: 0.41 | M182: 0.19 | N182: 0.19
A183: 0.89 | B183: 0.68 | C183: 0.75 | D183: 0.78 | E183: 0.43 | F183: 0.95 | G183: 0.54 | H183: 0.84 | I183: 0.13 | J183: 0.49 | K183: 0.67 | L183: 0.40 | M183: 0.20 | N183: 0.20
A184: 0.91 | B184: 0.98 | C184: 0.79 | D184: 0.61 | E184: 0.84 | F184: 0.66 | G184: 0.16 | H184: 0.08 | I184: 0.30 | J184: 0.87 | K184: 0.73 | L184: 0.31 | M184: 0.29 | N184: 0.29
A185: 0.35 | B185: 0.23 | C185: 0.62 | D185: 0.63 | E185: 0.59 | F185: 0.81 | G185: 0.41 | H185: 0.12 | I185: 0.89 | J185: 0.28 | K185: 0.16 | L185: 1.81 | M185: 0.00 | N185: 0.00
A186: 0.82 | B186: 0.70 | C186: 0.67 | D186: 0.36 | E186: 0.12 | F186: 0.73 | G186: 0.51 | H186: 0.80 | I186: 0.19 | J186: 0.38 | K186: 0.12 | L186: 2.13 | M186: 0.00 | N186: 0.00
A187: 0.42 | B187: 0.79 | C187: 0.87 | D187: 0.92 | E187: 0.19 | F187: 0.37 | G187: 0.44 | H187: 0.37 | I187: 0.64 | J187: 0.32 | K187: 0.23 | L187: 1.46 | M187: 0.00 | N187: 0.00
A188: 0.87 | B188: 0.46 | C188: 0.42 | D188: 0.51 | E188: 0.31 | F188: 0.29 | G188: 0.35 | H188: 0.49 | I188: 0.31 | J188: 0.64 | K188: 0.26 | L188: 1.36 | M188: 0.00 | N188: 0.00
A189: 0.36 | B189: 0.35 | C189: 0.41 | D189: 0.39 | E189: 0.72 | F189: 0.77 | G189: 0.39 | H189: 0.12 | I189: 0.36 | J189: 0.08 | K189: 0.37 | L189: 0.98 | M189: 0.02 | N189: 0.02
A190: 0.38 | B190: 0.03 | C190: 0.17 | D190: 0.54 | E190: 0.27 | F190: 0.82 | G190: 0.79 | H190: 0.47 | I190: 0.99 | J190: 0.75 | K190: 0.28 | L190: 1.28 | M190: 0.01 | N190: 0.01
A191: 0.65 | B191: 0.99 | C191: 0.20 | D191: 0.11 | E191: 0.96 | F191: 0.88 | G191: 0.57 | H191: 0.79 | I191: 0.79 | J191: 0.21 | K191: 0.02 | L191: 3.91 | M191: 0.00 | N191: 0.00
A192: 0.42 | B192: 0.00 | C192: 0.15 | D192: 0.65 | E192: 0.39 | F192: 0.04 | G192: 0.47 | H192: 0.02 | I192: 0.94 | J192: 0.31 | K192: 0.50 | L192: 0.69 | M192: 0.06 | N192: 0.06
A193: 0.06 | B193: 0.19 | C193: 0.35 | D193: 0.84 | E193: 0.12 | F193: 1.00 | G193: 0.77 | H193: 0.16 | I193: 0.91 | J193: 0.51 | K193: 0.27 | L193: 1.31 | M193: 0.01 | N193: 0.01
A194: 0.55 | B194: 0.11 | C194: 0.12 | D194: 0.30 | E194: 0.61 | F194: 0.28 | G194: 0.43 | H194: 0.58 | I194: 0.74 | J194: 0.56 | K194: 0.25 | L194: 1.39 | M194: 0.00 | N194: 0.00
A195: 0.72 | B195: 0.80 | C195: 0.36 | D195: 0.07 | E195: 0.22 | F195: 0.04 | G195: 0.60 | H195: 0.16 | I195: 0.26 | J195: =ABS(CORREL(A195:I195,A$1:I$1)) -> 0.54 | K195: =ABS(CORREL(A195:H195,B195:I195)) -> 0.26 | L195: =ABS(LN(K195/$P$2)) -> 1.35 | M195: =EXP(-$P$1*L195) -> 0.00 | N195: =MIN(J195,M195) -> 0.00
A196: 0.45 | B196: 0.58 | C196: 0.31 | D196: 0.33 | E196: 0.06 | F196: 0.13 | G196: 0.54 | H196: 0.20 | I196: 0.41 | J196: 0.26 | K196: 0.00 | L196: 5.93 | M196: 0.00 | N196: 0.00
A197: 0.05 | B197: 0.22 | C197: 0.13 | D197: 0.92 | E197: 0.98 | F197: 0.73 | G197: 0.09 | H197: 0.56 | I197: 0.48 | J197: 0.31 | K197: 0.29 | L197: 1.24 | M197: 0.01 | N197: 0.01
A198: 0.48 | B198: 0.16 | C198: 0.37 | D198: 0.29 | E198: 0.35 | F198: 0.40 | G198: 0.49 | H198: 0.23 | I198: 0.53 | J198: 0.28 | K198: 0.60 | L198: 0.50 | M198: 0.13 | N198: 0.13
A199: 0.82 | B199: 0.00 | C199: 0.40 | D199: 0.97 | E199: 0.54 | F199: 0.38 | G199: 0.74 | H199: 0.31 | I199: 0.00 | J199: 0.30 | K199: 0.15 | L199: 1.89 | M199: 0.00 | N199: 0.00
A200: 0.68 | B200: 0.78 | C200: 0.85 | D200: 0.75 | E200: 0.07 | F200: 0.71 | G200: 0.86 | H200: 0.06 | I200: 0.85 | J200: 0.21 | K200: 0.36 | L200: 1.03 | M200: 0.02 | N200: 0.02
... 4300 more rows
